Workbook

Sheet Indice
B1: Sociedad: | C1: IMAG S.R.L
S2: 1 | T2: Enero
S3: 2 | T3: Febrero
S4: 3 | T4: Marzo
S5: 4 | T5: Abril
A6: Fecha Presentación: | B6: 2022-03-31 | S6: 5 | T6: Mayo
S7: 6 | T7: Junio
S8: 7 | T8: Julio
C9: INDICE | D9: REF. | S9: 8 | T9: Agosto
B10: Informacion General | S10: 9 | T10: Septiembre
C11: Descripción de la naturaleza y del negocio de la Sociedad | D11: Nota 1 | S11: 10 | T11: Octubre
C12: Resumen de las principales políticas contables | D12: Nota 2 | S12: 11 | T12: Noviembre
B13: Balance General | D13: BG | S13: 12 | T13: Diciembre
C14: Efectivo y equivalente de efectivo | D14: Nota 3
C15: Inversiones temporales | D15: Nota 4
C16: Cuentas por cobrar comerciales | D16: Nota 5
C17: Otros créditos | D17: Nota 6
C18: Cuentas por cobrar comerciales | D18: Nota 5
C19: Inventarios | D19: Nota 7
C20: Inversión en asociadas | D20: Nota 8
C21: Propiedades, planta y equipo | D21: Nota 9
C22: Activos disponibles para la venta | D22: Nota 10
C23: Activos intangibles | D23: Nota 11
C24: Goodwill | D24: Nota 12
C25: Cuentas por pagar comerciales | D25: Nota 13
C26: Préstamos a corto plazo | D26: Nota 14
C27: Porción corriente de la deuda a largo plazo | D27: Nota 15
C28: Remuneraciones y cargas sociales a pagar | D28: Nota 16
C29: Impuestos a pagar | D29: Nota 17
C30: Provisiones | D30: Nota 18
C31: Otros pasivos corrientes | D31: Nota 19
C32: Prestamos a largo plazo | D32: Nota 14
C33: Otros pasivos no corrientes | D33: Nota 19
C34: Capital integrado | D34: Nota 20
C35: Reserva de revalúo | D35: Nota 21
C36: Reserva legal | D36: Nota 21
C37: Reservas estatutarias | D37: Nota 21
C38: Reservas facultativas | D38: Nota 21
C39: Diferencia transitoria por conversión | D39: Nota 22
C40: Resultados acumulados | D40: Nota 23
C41: Interés minoritario | D41: Nota 24
B42: Estado de Resultados | D42: ER
C43: Ventas | D43: Nota 25
C44: Costo de ventas | D44: Nota 26
C45: Gastos de ventas | D45: Nota 27
C46: Gastos administrativos | D46: Nota 27
C47: Otros ingresos y gastos operativos | D47: Nota 28
C48: Ingresos financieros - neto | D48: Nota 29
C49: Gastos financieros - neto | D49: Nota 29
C50: Resultado de inversiones en asociadas | D50: Nota 30
C51: Resultado participación minoritaria | D51: Nota 31
C52: Impuesto a la renta | D52: Nota 32
C53: Resultado extraordinario neto de impuesto a la renta | D53: Nota 33
C54: Resultado sobre actividades discontinuadas neto de impuesto a la renta | D54: Nota 34
C55: Utilidad/(Pérdida) neta del año | D55: Nota 35
C56: Utilidad neta por acción ordinaria | D56: Nota 35
B57: Estado de Evolución del Patrimonio Neto | D57: EVPN
B58: Estado de Flujos de Efectivo | D58: EFE
B59: Otras Notas de los Estados Financieros
C60: Activos gravados | D60: Nota 36
C61: Contingencias y compromisos | D61: Nota 37
C62: Impuesto diferido | D62: Nota 38
C63: Hechos posteriores | D63: Nota 39
C64: Saldos y transacciones con partes relacionadas | D64: Nota 40

Sheet BG
D1: =Indice!C1 -> IMAG S.R.L | E1: Indice
A7: BALANCE GENERAL
A8: =IFERROR(IF(Indice!B6="","Al dia... de mes… de año 2XX2…","Al "&DAY(Indice!B6)&" de "&VLOOKUP(MONTH(Indice!B6),Indice!S:T,2,0)&" de "&YEAR(Indice!B6)),"Al dia... de mes… de año 2XX2…") -> Al 31 de Marzo de 2022
A9: (En guaraníes)
E11: Nota | F11: =IFERROR(IF(Indice!B6="","2XX2",YEAR(Indice!B6)),"2XX2") -> 2022 | G11: =IFERROR(YEAR(Indice!B6-365),"2XX1") -> 2021
B12: ACTIVOS
B13: Activos Corrientes
C14: Efectivo y equivalente de efectivo | E14: 3 | F14: =+'Nota 3'!C20 -> 1163040246 | G14: ='Nota 3'!D20 -> 1228372533
C15: Inversiones temporales | E15: 4 | F15: ='Nota 4'!B18 -> 17736375 | G15: ='Nota 4'!C18 -> 17555398
C16: Cuentas por cobrar comerciales | E16: 5 | F16: ='Nota 5'!C27 -> 17024505066 | G16: ='Nota 5'!D27 -> 17183482477
C17: Otros créditos | E17: 6 | F17: ='Nota 6'!B20 -> 487024371 | G17: ='Nota 6'!C20 -> 254479359
C18: Inventarios | E18: 7 | F18: ='Nota 7'!B16 -> 39482360089 | G18: ='Nota 7'!C16 -> 34469731485
C19: Total activos corrientes | F19: =SUM(F14:F18) -> 58174666147 | G19: =SUM(G14:G18) -> 53153621252
B20: Activos no Corrientes
C21: Otros créditos | E21: 6 | F21: ='Nota 6'!F15 -> 608228838 | G21: ='Nota 6'!G15 -> 735639683
C22: Cuentas por cobrar comerciales | E22: 5 | F22: ='Nota 5'!C54 -> 4645988917 | G22: ='Nota 5'!D54 -> 4582379554
C23: Inversión en asociadas | E23: 8 | F23: ='Nota 8'!B8 -> 25000000 | G23: ='Nota 8'!C8 -> 25000000
C24: Propiedades, planta y equipo/Bienes de uso, neto | E24: 9 | F24: ='Nota 9'!L26 -> 13863742493 | G24: ='Nota 9'!M26 -> 13513989735
C25: Activos disponibles para la venta | E25: 10 | F25: ='Nota 10'!B19 -> 0 | G25: ='Nota 10'!C19 -> 0
C26: Activos intangibles | E26: 11 | F26: ='Nota 11'!B11 -> 13824738 | G26: ='Nota 11'!C11 -> 32106555
C27: Goodwill | E27: 12 | F27: ='Nota 12'!B11 -> 0 | G27: ='Nota 12'!C11 -> 0
C28: Total activos no corrientes | F28: =SUM(F21:F27) -> 19156784986 | G28: =SUM(G21:G27) -> 18889115527
B29: Total Activos | F29: =+F19+F28 -> 77331451133 | G29: =+G19+G28 -> 72042736779
B30: PASIVOS Y PATRIMONIO NETO
B31: Pasivos corrientes | F31: -1
C32: Cuentas por pagar comerciales | E32: 13 | F32: ='Nota 13'!D13 -> 3393229147 | G32: ='Nota 13'!E13 -> 2259502230
C33: Préstamos a corto plazo | E33: 14 | F33: =+'Nota 14'!E37 -> 16177041125 | G33: =+'Nota 14'!K37 -> 1.186641605e+10
C34: Porción corriente de la deuda a largo plazo | E34: 15 | F34: ='Nota 15'!B16 -> 5792697101 | G34: ='Nota 15'!C16 -> 3268894239
C35: Remuneraciones y cargas sociales a pagar | E35: 16 | F35: ='Nota 16'!B12 -> 95878268 | G35: ='Nota 16'!C12 -> 90262560
C36: Impuestos a pagar | E36: 17 | F36: ='Nota 17'!B12 -> 151243962 | G36: ='Nota 17'!C12 -> 151243962
C37: Provisiones | E37: 18 | F37: ='Nota 18'!B21 -> 819123026 | G37: ='Nota 18'!C21 -> 319712301
C38: Otros pasivos corrientes | E38: 19 | F38: ='Nota 19'!B22 -> 2363929323 | G38: ='Nota 19'!C22 -> 2718597888
C39: Total Pasivos Corrientes | F39: =+F32+F33+F34+F35+F36+F37+F38 -> 28793141952 | G39: =+G32+G33+G34+G35+G36+G37+G38 -> 20674629234
B40: Pasivos no corrientes
C41: Cuentas por pagar comerciales | E41: 13 | F41: ='Nota 13'!D22 -> 32924483 | G41: ='Nota 13'!E22 -> 0
C42: Préstamos a largo plazo | E42: 14 | F42: =+'Nota 14'!E62 -> 3419017082 | G42: ='Nota 14'!K62 -> 8079679056
C43: Otros pasivos no corrientes | E43: 19 | F43: ='Nota 19'!F19 -> 0 | G43: ='Nota 19'!G19 -> 0
C44: Total pasivos no corrientes | F44: =SUM(F41:F43) -> 3451941565 | G44: =SUM(G41:G43) -> 8079679056
B46: Total Pasivos | F46: =+F39+F44 -> 32245083517 | G46: =+G39+G44 -> 28754308290
B47: Patrimonio Neto
C48: Capital | E48: 20 | F48: =+'Nota 20'!B7 -> 5155840000 | G48: =+'Nota 20'!C7 -> 5155840000
C49: Reserva de revalúo | E49: 21 | F49: =' Nota 21'!B8 -> 3380681039 | G49: =' Nota 21'!C8 -> 3380681039
C50: Reserva legal | E50: 21 | F50: =' Nota 21'!B12 -> 1000000000 | G50: =' Nota 21'!C12 -> 1000000000
C51: Reservas estatutarias | E51: 21 | F51: =' Nota 21'!B16 -> 0 | G51: =' Nota 21'!C16 -> 0
C52: Reservas facultatitvas | E52: 21 | F52: =' Nota 21'!B20 -> 25285413706 | G52: =' Nota 21'!C20 -> 25285413706
C53: Diferencia transitoria por conversión | E53: 22 | F53: ='Nota 22'!B8 -> 0 | G53: ='Nota 22'!C8 -> 0
C54: Resultados acumulados | E54: 23 | F54: ='Nota 23'!B10 -> 10264432871 | G54: ='Nota 23'!C10 -> 8466493744
C55: Subtotal | F55: =SUM(F48:F54) -> 45086367616 | G55: =SUM(G48:G54) -> 43288428489
C56: Interés minoritario | E56: 24 | F56: ='Nota 24'!B8 -> 0 | G56: ='Nota 24'!C8 -> 0
B57: Total Patrimonio Neto | F57: =F55 -> 45086367616 | G57: =G55 -> 43288428489
B58: Total Pasivos y Patrimonio Neto | F58: =+F46+F57 -> 77331451133 | G58: =+G46+G57 -> 72042736779
B60: Las notas que se acompañan forman parte integrante de estos estados. | F60: =+F29-F58 -> 0 | G60: =+G29-G58 -> 0

Sheet ER
A1: =Indice!C1 -> IMAG S.R.L | B1: Indice | D1: =ER!A4 -> 
A7: ESTADO DE RESULTADOS
A8: =IFERROR(IF(Indice!B6="","Al dia... de mes… de año 2XX2…","Al "&DAY(Indice!B6)&" de "&VLOOKUP(MONTH(Indice!B6),Indice!S:T,2,0)&" de "&YEAR(Indice!B6)),"Al dia... de mes… de año 2XX2…") -> Al 31 de Marzo de 2022
A9: Comparativo con igual período del año anterior
A10: (En guaraníes)
B12: Nota | C12: =IFERROR(IF(Indice!B6="","2XX2",YEAR(Indice!B6)),"2XX2") -> 2022 | D12: =IFERROR(YEAR(Indice!B6-365),"2XX1") -> 2021
A13: Ventas | B13: 25 | C13: ='Nota 25'!B26 -> 14206943042 | D13: ='Nota 25'!C26 -> 13897393984
A14: Costo de ventas | B14: 26 | C14: ='Nota 26'!B21 -> 7742875091 | D14: ='Nota 26'!C21 -> 7590613497
A15: Utilidad bruta | C15: =+C13-C14 -> 6464067951 | D15: =+D13-D14 -> 6306780487
A16: Gastos de ventas | B16: 27 | C16: =+'Nota 27'!B35 -> 4122716963 | D16: =+'Nota 27'!E35 -> 4179427909
A17: Gastos administrativos | B17: 27 | C17: =+'Nota 27'!C35 -> 626318882 | D17: =+'Nota 27'!F35 -> 429506512
A18: Otros ingresos y gastos operativos | B18: 28 | C18: =+'Nota 28'!B18-'Nota 28'!F18 -> 675690849 | D18: =+'Nota 28'!C18-'Nota 28'!G18 -> 325855621
A19: Resultado operativo | C19: =+C15-C16-C17+C18 -> 2390722955 | D19: =+D15-D16-D17+D18 -> 2023701687
A20: Ingresos financieros - neto | B20: 29 | C20: ='Nota 29'!B12 -> 40331569 | D20: ='Nota 29'!C12 -> 65000870
A21: Gastos financieros - neto | B21: 29 | C21: ='Nota 29'!F12 -> 372775192 | D21: ='Nota 29'!G12 -> 200754364
A22: Subtotal | C22: =+C19+C20-C21 -> 2058279332 | D22: =+D19+D20-D21 -> 1887948193
A23: Resultado de inversiones en asociadas | B23: 30 | C23: ='Nota 30'!B16 -> 0 | D23: ='Nota 30'!C16 -> 0
A24: Resultados ordinarios antes de impuesto a la renta y participación minoritaria | C24: =C22+C23 -> 2058279332 | D24: =D22+D23 -> 1887948193
A25: Resultado participación minoritaria | B25: 31 | C25: ='Nota 31'!B16 -> 0 | D25: ='Nota 31'!C16 -> 0
A26: Resultado ordinario antes del impuesto a la renta | C26: =+C24-C25 -> 2058279332 | D26: =+D24-D25 -> 1887948193
A27: Impuesto a la renta | B27: 32 | C27: ='Nota 32'!B10 -> 260340205 | D27: ='Nota 32'!C10 -> 244406902
A28: Resultado neto de actividades ordinarias | C28: =+C26-C27 -> 1797939127 | D28: =+D26-D27 -> 1643541291
A29: Resultado extraordinario neto de impuesto a la renta | B29: 33 | C29: =+'Nota 33'!B15 -> 0 | D29: =+'Nota 33'!C15 -> 0
A30: Resultado sobre actividades discontinuadas neto de impuesto a la renta | B30: 34 | C30: ='Nota 34'!B12 -> 0 | D30: ='Nota 34'!C12 -> 0
A31: Utilidad/(Pérdida) neta del año | C31: =C28+C29+C30 -> 1797939127 | D31: =D28+D29+D30 -> 1643541291
A32: Utilidad neta por acción ordinaria | B32: 35 | C32: ='Nota 35'!B10 -> 0 | D32: ='Nota 35'!C10 -> 0
A35: Las notas que se acompañan forman parte integrante de estos estados.

Sheet EVPN
A1: =Indice!C1 -> IMAG S.R.L | J1: Indice
H4: ESTADO DE EVOLUCIÓN DEL PATRIMONIO NETO
J5: =IFERROR(IF(Indice!B6="","Al dia... de mes… de año 2XX2…","Al "&DAY(Indice!B6)&" de "&VLOOKUP(MONTH(Indice!B6),Indice!S:T,2,0)&" de "&YEAR(Indice!B6)),"Al dia... de mes… de año 2XX2…") -> Al 31 de Marzo de 2022
A6: Comparativo con igual periodo del año anterior
A7: (En guaraníes)
C10: Aporte de los propietarios | N10: Ganancias reservadas
C11: Capital suscripto e integrado | D11: Aporte para | F11: Aporte p/ Futura Capitalizacion | H11: Primas de emisión | J11: Reserva de revalúo | L11: Reserva de revalúo técnico | N11: Reserva legal | P11: Reserva p/ Futura Capitalizacion | R11: Reserva facultativa | T11: Resultados acumulados | V11: Interes Minoritario | X11: Total
D12: aumento de capital | T12: Total
A14: Saldo al 31 de Diciembre 2020 | C14: 5000000000 | D14: 0 | F14: 155840000 | H14: 0 | J14: 3380681039 | L14: 0 | N14: 1000000000 | P14: 7958274138 | R14: 10563164884 | T14: 6763974683 | V14: 0 | X14: 34821934744
A15: Cambio en política contable (Nota….)
A16: Saldo reestructurado | C16: =+C14-C15 -> 5000000000 | F16: =+F14-F15 -> 155840000 | H16: =+H14-H15 -> 0 | J16: =+J14-J15 -> 3380681039 | L16: =+L14-L15 -> 0 | N16: =+N14-N15 -> 1000000000 | P16: =+P14-P15 -> 7958274138 | R16: =+R14-R15 -> 10563164884 | T16: =+T14-T15 -> 6763974683 | V16: =+V14-V15 -> 0 | X16: =+C16+H16+J16+L16+N16+P16+R16+T16+V16+F16 -> 34821934744
A17: Distribución de dividendos s/Acta de Asamblea Ordinaria N°… de fecha……… | T17: 0 | X17: =+T17 -> 0
A18: Integración del capital social | X18: =+C18+H18+J18+L18+N18+P18+R18+T18+V18+F18 -> 0
A19: Reducción del capital social s/Acta de Asamblea General Ordinaria N°… de fecha……..
A20: Revalúo de activos fijos | J20: 0 | X20: =+C20+F20+H20+J20+L20+N20+P20+R20+T20+V20 -> 0
A21: Reserva Legal | N21: 0 | X21: 0
A22: Reserva Facultativa | R22: 0 | X22: 0
A23: Reserva p/ Futura Capitalizacion | R23: 0 | X23: 0
A24: Revalúo técnico | X24: 0
A25: Resultado del año | T25: 1643541292 | X25: 1643541292
A27: =IFERROR(IF(Indice!B6="","Saldo al .. de de 20X1 ","Saldo al "&DAY(Indice!B6)&" de "&VLOOKUP(MONTH(Indice!B6),Indice!S:T,2,0)&" de "&YEAR(Indice!B6-365)),"Saldo al .. de de 20X1 ") -> Saldo al 31 de Marzo de 2021 | C27: =SUM(C16:C26) -> 5000000000 | D27: =SUM(D14:D25) -> 0 | F27: =SUM(F16:F26) -> 155840000 | H27: =SUM(H16:H26) -> 0 | I27: =SUM(I14:I26) -> 0 | J27: =SUM(J16:J26) -> 3380681039 | L27: =SUM(L16:L26) -> 0 | N27: =SUM(N16:N26) -> 1000000000 | P27: =SUM(P16:P26) -> 7958274138 | R27: =SUM(R16:R26) -> 10563164884 | T27: =SUM(T16:T26) -> 8407515975 | V27: =SUM(V16:V26) -> 0 | X27: =SUM(X16:X26) -> 36465476036
A28: Saldo al 31 de Diciembre 2021 | C28: =SUM(C17:C27) -> 5000000000 | D28: =SUM(D15:D26) -> 0 | F28: =SUM(F17:F27) -> 155840000 | H28: 0 | J28: 3380681039 | L28: 0 | N28: 1000000000 | P28: 7958274138 | R28: 17327139567 | T28: 8466493744 | V28: 0 | X28: =SUM(C28:V28) -> 43288428488
A29: Reserva Facultativa | F29: 0 | H29: 0 | J29: 0 | L29: 0 | N29: 0 | P29: 0 | R29: 0 | T29: 0 | V29: 0 | X29: 0
A30: Revalúo de activos fijos | X30: =+C30+H30+J30+L30+N30+P30+R30+T30+V30+F30 -> 0
A31: Desafectación de la reserva de revalúo técnico
A32: Resultado del año | T32: 1797939127 | X32: =+C32+H32+J32+L32+N32+P32+R32+T32+V32+F32 -> 1797939127
A34: =IFERROR(IF(Indice!B6="","Saldo al .. de de 20X2 ","Saldo al "&DAY(Indice!B6)&" de "&VLOOKUP(MONTH(Indice!B6),Indice!S:T,2,0)&" de "&YEAR(Indice!B6)),"Saldo al .. de de 20X2 ") -> Saldo al 31 de Marzo de 2022 | C34: =SUM(C28:C33) -> 5000000000 | D34: =SUM(D27:D32) -> 0 | F34: =SUM(F28:F33) -> 155840000 | H34: =SUM(H28:H33) -> 0 | J34: =SUM(J28:J33) -> 3380681039 | L34: =SUM(L28:L33) -> 0 | N34: =SUM(N28:N33) -> 1000000000 | P34: =SUM(P28:P33) -> 7958274138 | R34: =SUM(R28:R33) -> 17327139567 | T34: =SUM(T28:T33) -> 10264432871 | V34: =SUM(V28:V33) -> 0 | X34: =SUM(X28:X33) -> 45086367615
A36: Las notas que se acompañan forman parte integrante de estos estados.

Sheet EFE
A1: =Indice!C1 -> IMAG S.R.L
A5: ESTADO DE FLUJOS DE EFECTIVO (Método directo)
A6: =IFERROR(IF(Indice!B6="","Al dia... de mes… de año 2XX2…","Al "&DAY(Indice!B6)&" de "&VLOOKUP(MONTH(Indice!B6),Indice!S:T,2,0)&" de "&YEAR(Indice!B6)),"Al dia... de mes… de año 2XX2…") -> Al 31 de Marzo de 2022
A7: Comparativo con igual periodo del año anterior
A8: (En guaraníes)
B11: =IFERROR(IF(Indice!B6="","2XX2",YEAR(Indice!B6)),"2XX2") -> 2022 | C11: =IFERROR(YEAR(Indice!B6-365),"2XX1") -> 2021
A13: FLUJO DE EFECTIVO DE ACTIVIDADES OPERATIVAS
A14: Cobranzas efectuadas a clientes | B14: 14207941376 | C14: 11814428583
A15: Pagos efectuados a proveedores y empleados | B15: -12754096949 | C15: -11695012690
A16: Efectivo generado por las operaciones | B16: 0 | C16: -1235207245
A17: Intereses pagados | B17: -43284831 | C17: -221497927
A18: Otros ingresos y (egresos) - neto | B18: -2329025911 | C18: 121489974
A19: Pagos de impuesto a la renta | B19: -260340205 | C19: -244406902
A20: Flujo neto de efectivo de actividades operativas | B20: =SUM(B14:B19) -> -1178806520 | C20: =SUM(C14:C19) -> -1460206207
A22: FLUJO DE EFECTIVO DE ACTIVIDADES DE INVERSIÓN
A23: Adquisición de bienes de uso | B23: -499966651 | C23: -249078727
A24: Adquisición de bienes Curtiembre - fideicomitida | C24: 0
A25: Ventas de activos fijos | C25: 0
A26: Ventas de bienes de uso | C26: 0
A27: Intereses cobrados sobre inversiones | B27: -180977 | C27: 0
A28: Aquisición de inversiones | B28: 0 | C28: 0
A29: Flujo neto de efectivo de actividades de inversión | B29: =SUM(B23:B28) -> -500147628 | C29: =SUM(C23:C28) -> -249078727
A31: FLUJO DE EFECTIVO DE ACTIVIDADES DE FINANCIACIÓN
A32: (Disminución) Incremento de préstamos | B32: 1918253216 | C32: 2056725182
A33: Aportes de capital recibidos | B33: 0 | C33: 0
A34: Dividendos pagados | B34: -350500000 | C34: 0
A35: Flujo neto de efectivo de actividades de financiamiento | B35: =B32+B33+B34 -> 1567753216 | C35: =C32+C33+C34 -> 2056725182
A37: (Disminución) Incremento neto de efectivo | B37: -111200932 | C37: 347440248
A38: Efecto estimado de la diferencia de cambio sobre el saldo de efectivo | B38: 45868645 | C38: -922588262
A39: Efectivo al principio del año | B39: 1228372533 | C39: 1350227278
A41: Efectivo al final del periodo | B41: =+SUM(B37:B39) -> 1163040246 | C41: =+SUM(C37:C39) -> 775079264
A43: Las notas que se acompañan forman parte integrante de estos estados.

Sheet Nota1
A1: =Indice!C1 -> IMAG S.R.L | I1: BG
A6: NOTAS A LOS ESTADOS FINANCIEROS CORRESPONDIENTES AL PERIODO TERMINADO | H6: =IFERROR(IF(Indice!B6="","Al dia... de mes… de año 2XX2…","Al "&DAY(Indice!B6)&" de "&VLOOKUP(MONTH(Indice!B6),Indice!S:T,2,0)&" de "&YEAR(Indice!B6)),"Al dia... de mes… de año 2XX2…") -> Al 31 de Marzo de 2022
A7: Presentadas en forma comparativa con el periodo terminado | F7: =IFERROR("Al "&DAY(Indice!B6)&" de "&VLOOKUP(MONTH(Indice!B6),Indice!S:T,2,0)&" de "&YEAR(Indice!B6-365),"Al dia... de mes… de año 2XX1…") -> Al 31 de Marzo de 2021
A11: NOTA 1 – DESCRIPCIÓN DE LA NATURALEZA Y DEL NEGOCIO DE LA COMPAÑÍA
A15: Ente. La empresa IMAG S.R.L. fue constituida por Escritura Pública N° 11 de fecha 12 de enero de 1995, e inscripta en el Registro Público de Comercio bajo el N° 1144 de fecha 20 de noviembre de 1997. Por Escritura Pública N° 10 de fecha 08/01/05, autorizada por la Escribana María Inocencia Cristaldo Centurión, fue formalizada la modificación de los estatutos, inscribiéndose en la Dirección General de los Registros Públicos, Sección Personas Jurídicas y Asociaciones, con el N° 246 al folio 2945 y siguientes el 05/04/05 y en el Registro Público de Comercio con el N° 408 Serie “C” al folio 4261 y siguientes sección contratos el 11/04/05. La Sociedad tiene por objeto la realización por cuenta propia, individualmente o asociada a terceros, o por cuenta de terceros, de toda clase de operaciones relacionadas con la compra-venta de implementos agrícolas, motores eléctricos, importación de vehículos y servicio de taller.
A16: Actividad Principal:
A18: * Comercio al por mayor de vehículos automotores usados
A20: Actividades Secundarias:
A22: * Mantenimiento y reparación mecánica de vehículos
A23: * Comercio al por mayor de otras maquinarias y equipos n.c.p.
A24: * Comercio al por mayor de otros productos n.c.p.
A25: * Actividades inmobiliarias realizadas con bienes propios o arrendados

Sheet Nota 2
A1: =Indice!C1 -> IMAG S.R.L | I1: BG
A6: NOTA 2 - RESUMEN DE LAS PRINCIPALES POLÍTICAS CONTABLES
A7: Resumen de las principales políticas contables: a modo referencial, se incluyen las siguientes revelaciones de políticas contables en estados financieros de uso general que podrá ser tenida en consideración por las sociedades emisoras para la preparación de este capítulo de los estados financieros:
A10: a. Bases de contabilización (Según NIF Bases de preparación de los Estados Financieros)
A11: Los estados financieros se han preparado siguiendo los criterios de las Normas de Información Financiera (NIF) emitidas por el Consejo de Contadores Públicos del Paraguay sobre la base de costos históricos, excepto para el caso de activos y pasivos en moneda extranjera y las propiedades, planta y equipo según se explica en los puntos c ) y j), y no reconocen en forma integral los efectos de la inflación sobre la situación patrimonial y financiera de la sociedad, sobre los resultados de sus operaciones y los flujos de efectivo, en atención a que la corrección monetaria no constituye una práctica contable obligatoria en el Paraguay.
A12: De haberse aplicado una corrección monetaria integral de los estados financieros, podrían haber surgido diferencias en la presentación de la situación patrimonial y financiera de la sociedad, en los resultados de sus operaciones y en los flujos de efectivo al ….., y por los ejercicios cerrados el, 31 de ………. de 20X2 y 20X1. Según el índice general de precios del consumo (IPC) publicado por el Banco Central del Paraguay, la inflación fue de 00,0% en el año 20X2 y 00,0% en el año 20X1. Obs: Datos a incorporar para cierre del ejercicio
A15: b. Uso de estimaciones contables
A16: La preparación de los presentes estados financieros requiere que la Gerencia de la sociedad realice estimaciones y evaluaciones que afectan el monto de los activos y pasivos registrados y contingentes, como así también los ingresos y egresos registrados en el ejercicio. Los resultados reales futuros pueden diferir de las estimaciones y evaluaciones realizadas a la fecha de preparación de los presentes estados financieros.
A18: c. Moneda extranjera
A19: Los activos y pasivos en moneda extranjera se valúan a los tipos de cambio vigentes a la fecha de cierre del ejercicio.
A20: Las diferencias de cambio originadas por fluctuaciones en los tipos de cambio producidos entre las fechas de concertación de las operaciones y su liquidación o valuación al cierre del ejercicio, son reconocidas en resultados.
C23: =IFERROR(IF(Indice!B6="","2XX2",YEAR(Indice!B6)),"2XX2") -> 2022 | G23: =IFERROR(YEAR(Indice!B6-365),"2XX1") -> 2021
B24: Indicar moneda | C24: Simbología según ISO 4217 | D24: Gs. | F24: Indicar moneda | G24: Simbología según ISO 4217 | H24: =+D24 -> Gs.
A25: Activos | B25: DÓLAR ESTADOUNIDENSE | C25: USD | D25: 2.125794532e+10 | F25: DÓLAR ESTADOUNIDENSE | G25: USD | H25: 1.571042988e+10
A27: Pasivos | B27: DÓLAR ESTADOUNIDENSE | C27: USD | D27: 3059200819 | F27: DÓLAR ESTADOUNIDENSE | G27: USD | H27: 1106902742
A29: Posición neta | D29: =+D25-D27 -> 1.81987445e+10 | H29: =+H25-H27 -> 1.460352714e+10
A32: A la fecha de emisión de estos estados financieros, el tipo de cambio de la moneda extranjera al 31/03/2022 fue Gs.6.921,52 Activa y Gs. 6.931,47 Pasiva (por cada 1 guaraní) vario un (9,30% en el activo y un 8,37%) con respecto al vigente al 31.de…marzo….2022
A34: d. Efectivo y equivalentes de efectivo
A35: Se considerarán dentro del concepto de efectivo los saldos en efectivo, disponibilidades en cuentas bancarias y toda inversión de muy alta liquidez, con vencimiento originalmente pactado no superior a tres meses.
A38: e. Inversiones
A39: Las inversiones temporales se valúan de acuerdo a los siguientes criterios de valuación:  Colocaciones financieras en moneda local: a su valor nominal más los intereses devengados al cierre del año/período. Ver Nota 4  Las inversiones no corrientes en sociedades donde no se ejerce el control, se valúan a su valor patrimonial proporcional. Ver Nota 8
A40: Obs.: En caso de la existencia de saldos y transacciones con partes relacionadas, la información que corresponda a ser expuesta por la sociedad, se ajustará a lo requerido por la Norma de Información Financiera N° 7 Revelaciones de partes relacionadas.
A43: f. Previsión para cuentas de dudoso cobro/incobrables
A44: Las previsiones para cuentas de dudoso cobro se determinan al cierre de cada mes sobre la base del estudio de la cartera de créditos realizado con el objeto de determinar la porción no recuperable de las cuentas a cobrar. Las previsiones para cuentas de dudoso cobro se determinan mensualmente de acuerdo con el siguiente esquema de cálculo:
A45: Previsión Ctas Incobrables s/ estados:
A46: 0 a 30 días | B46: 0.07
A47: 31 a 90 días | B47: 0.1
A48: 91 a más | B48: 1
A49: Cheques Judiciales | B49: 1
A50: Cheques Rechazados | B50: 1
A52: g. Inventarios
A53: Las existencias se valúan de acuerdo a su costo promedio de adquisición. Para determinar el consumo (baja de inventarios) se aplicarán las fórmulas de costeo: PPP (Precio Promedio Ponderado) a los cuales se aplican los porcentajes de utilidad de acuerdo a la línea de artículo al momento de su efectiva realización que se materializan en la venta del mismo. Ver nota 7
A56: h. Activos disponibles para la venta
A57: Los activos disponibles para la venta representan bienes que fueron desafectados de la actividad productiva y se mantienen con el único objetivo de ser vendidos. Los mismos se valúan, sin amortizar, al menor entre el valor de mercado de los mismos y su costo (valor libro) al momento de su designación como disponibles para la venta.
A58: La Sociedad no cuenta con Activos para la Venta
A61: i. Previsiones para desvalorización y deterioro de inventarios
A62: Las previsiones para desvalorización y deterioro de inventarios han sido estimadas tomando como base la valorización del stock deteriorado existente al cierre del ejercicio, el cual se detalla como sigue:
A63: Previsión Mercadería
A64: Del listado de antigüedad de stock de3 y 2 años
A65: Ultimos 3 años se previsiona el 100%
A66: La diferencia resultante con el 2do. año se previsiona el 50%
A68: j. Propiedades, planta y equipo
A69: Las propiedades, planta y equipo se exponen a su costo histórico ajustado por el coeficiente de revalúo emitido por la Autoridad Tributaria, menos la correspondiente depreciación acumulada. El incremento neto por la re-expresión se acredita a la respectiva reserva patrimonial, cuyo saldo puede ser utilizado únicamente para aumentar el capital.
A70: El costo de las mejoras que extienden la vida útil de los bienes o aumentan su capacidad productiva es imputado a las cuentas respectivas del activo. Los gastos de mantenimiento son cargados a resultados.
A71: La depreciación es calculada por el método de línea recta, saldo decreciente o suma de unidades (la emisora elige uno de los tres métodos con base en el patrón esperado de beneficios económicos y lo aplica consistentemente de ejercicio a ejercicio a menos que haya cambios significativos en dicho patrón considerado -NIF 11 párrafo 43 y 48). Ver Nota ...
A72: Los efectos de los ajustes sobre Propiedades, Planta y Equipo de operaciones discontinuadas se exponen formando parte de la línea “Resultados sobre actividades discontinuadas neto de impuesto a la renta” en el Estado de Resultados.
A73: La Sociedad no ha realizado cambios significativos ni cuenta con operaciones discontinuadas que formen parte del estado de resultado.
A75: k. Intangibles
A76: Los intangibles se exponen a su costo incurrido menos las correspondientes amortizaciones acumuladas al cierre del año.
A77: Las amortizaciones son calculadas por el método que refleja el patrón de consumo de los beneficios económicos derivados de los intangibles o por el método de línea recta Ver Nota 11
A78: Este rubro incluye costos incurridos por la sociedad relacionados con ingresos futuros.
A81: l. Goodwill
A82: La Sociedad no cuenta con valor pagado y/o amortizado Goodwill
A85: m. Reconocimiento de ingresos y egresos
A86: Los ingresos y egresos son reconocidos en función de su devengamiento.
A89: n. Impuesto a la renta
A90: El impuesto a la renta que se carga a los resultados del año se basa en la utilidad contable antes de este concepto, ajustada por las partidas que la ley incluye o excluye para la determinación de la utilidad gravable a la que se aplica la tasa legal vigente del impuesto y por el reconocimiento del cargo o el ingreso originado por la aplicación del impuesto diferido, si los hubiere.
A92: o. Restricciones a la distribución de utilidades
A95: La Sociedad al 31/03/2022 no cuenta con restricciones para la distribucion de utilidades.
A96: p. Derechos en Fideicomiso
A98: La Sociedad no cuenta con derechos en Fideicomiso.
A100: q. Otros principios, prácticas y métodos
A102: Al cierre del ejercicio 31/03/2022. No existen hechos relevantes registrados en los Estados Financieros que merescan ser expuestos como notas explicativas.
A104: Obs.: Cambios en políticas contables y su efecto sobre los estados financieros, como así también las modificaciones o ajustes de la información de ejercicios anteriores deben exponerse conforme a lo requerido por la Norma de Información Financiera N° 6 Utilidad o pérdida neta por el período, errores fundamentales y cambios en políticas contables

Sheet Nota 3
A1: =Indice!C1 -> IMAG S.R.L | E1: BG
A3: Obs.: Revelar situación en el caso de contar con disponibilidad restringida
A7: NOTA 3 - EFECTIVO Y EQUIVALENTE DE EFECTIVO
A8: En guaranies
A9: La composición de la cuenta es la siguiente:
A11: Concepto | C11: =IFERROR(IF(Indice!B6="","2XX2",YEAR(Indice!B6)),"2XX2") -> 2022 | D11: =IFERROR(YEAR(Indice!B6-365),"2XX1") -> 2021
A13: Caja | C13: =221641640-C14 -> 186112817 | D13: 27058356
A14: Recaudaciones a depositar | C14: 35528823 | D14: 14291496
A15: Bancos Locales - Moneda local Guaraníes | C15: =168446047+56867664+67649311+2230551+113610746+6491090+28126466 -> 443421875 | D15: 785411385
A16: Bancos Locales - Moneda extranjera Dólares | C16: =165933933+50049691+122804238+150513920+6745921+1929028 -> 497976731 | D16: 401611296
A17: Bancos Locales - Moneda extranjera otros | C17: 0 | D17: 0
A18: Bancos en el Extranjero - Moneda extranjera Dólares | C18: 0 | D18: 0
A19: (nuevas cuentas a incluir) | C19: 0 | D19: 0
A20: Total | C20: =+C13+C14+C15+C16 -> 1163040246 | D20: =SUM($D$13:D19) -> 1228372533

Sheet Nota 4
A1: =Indice!C1 -> IMAG S.R.L | D1: BG
A4: NOTA 4 - INVERSIONES TEMPORALES
A6: La composición de la cuenta es la siguiente:
B7: En guaranies
A8: Concepto | B8: =IFERROR(IF(Indice!B6="","2XX2",YEAR(Indice!B6)),"2XX2") -> 2022 | C8: =IFERROR(YEAR(Indice!B6-365),"2XX1") -> 2021
A9: Inversiones en Titulos del Sistema Financiero Local - Moneda Local Guaraníes | B9: 0 | C9: 0
A10: Inversiones en Titulos del Sistema Financiero Local - Moneda Extranjera Dólares | B10: 0 | C10: 0
A11: Inversiones en Titulos del Sistema Financiero Local - Moneda Extranjera otros | B11: 0 | C11: 0
A12: Inversiones en Mercado Bursatil Local - Moneda Local Guaraníes | B12: 0 | C12: 0
A13: Inversiones en Mercado Bursatil Local - Moneda Extranjera Dólares | B13: 0 | C13: 0
A14: Inversiones en Mercado Bursatil Extranjera - Moneda Extranjera Dólares | B14: 0 | C14: 0
A15: Inversiones en Mercado Bursatil Extranjera - Moneda Extranjera otros | B15: 0 | C15: 0
A16: Otras inversiones - Moneda Local Guaraníes | B16: 17736375 | C16: 17555398
A17: Otras inversiones - Moneda Extranjera Dólares | B17: 0 | C17: 0
A18: Total | B18: =SUM($B$9:B17) -> 17736375 | C18: =SUM($C$9:C17) -> 17555398

Sheet Nota 5
A1: =Indice!C1 -> IMAG S.R.L | F1: BG
A2: Detallar cartera vencida y no vencida por clientes locales, extranjeros y partes relacionadas
A3: Se indicarán en este rubro todos los créditos a favor de la empresa provenientes de las ventas de Mercaderías y/o servicios (atendiendo a la actividades ordinarias de la empresa), separando las ventas locales en moneda nacional y/o extranjera de las ventas fuera del país en moneda nacional y/o extranjera
A5: NOTA 5 – CUENTAS POR COBRAR COMERCIALES
A6: Las cuentas a cobrar comerciales a corto plazo se integran como sigue:
C7: En guaraníes
C8: =IFERROR(IF(Indice!B6="","2XX2",YEAR(Indice!B6)),"2XX2") -> 2022 | D8: =IFERROR(YEAR(Indice!B6-365),"2XX1") -> 2021 | F8: Composición de la cartera de créditos por ventas | G8: 2022-03-31
A9: Deudores por ventas locales | B9: Moneda Local Guaraníes | C9: =15931316508-C10-C15 -> 6448377521 | D9: 6235413447 | F9: Situación | G9: Monto | H9: % Previsiones sobre Cartera
A10: Deudores por ventas locales | B10: Moneda Extranjera Dólares | C10: 9460662031 | D10: 9631771687 | F10: A Total Cartera no Vencida | G10: 2.176019808e+10 | H10: 0.06562620502
A11: Deudores por ventas locales | B11: Moneda Extranjera otros | D11: 0 | F11: B. Total Cartera Vencida | G11: =+SUM(G13:G15) -> 3260170181
A12: Deudores por ventas en el exterior | B12: Moneda Local Guaraníes | D12: 0 | F12: Composición Cartera Vencida
A13: Deudores por ventas en el exterior | B13: Moneda Extranjera Dólares | D13: 0 | F13: Normal | G13: 1487039025 | H13: 0.1
A14: Deudores por ventas en el exterior | B14: Moneda Extranjera otros | D14: 0 | F14: En Gestión de Cobro | G14: 1333977525 | H14: 1
A15: Deudores - Entidad relacionada | B15: Moneda Local Guaraníes | C15: =18952200+3324756 -> 22276956 | D15: 13746679 | F15: En Gestión de Cobro Judicial | G15: 439153631 | H15: 1
A16: Deudores - Entidad relacionada | B16: Moneda Extranjera Dólares | D16: 0
A17: Deudores - Entidad relacionada | B17: Moneda Extranjera otros | D17: 0 | F17: Total de la cartera de créditos (A+B) | G17: =G10+G11 -> 2.502036826e+10
A18: Cheques adelantados recibidos de clientes | B18: Moneda Local Guaraníes | C18: 2401317872 | D18: 2439562099
A19: Cheques adelantados recibidos de clientes | B19: Moneda Extranjera Dólares | C19: 268613809 | D19: 485707178 | F19: (-) Total Previsiones | G19: =-((G10*H10)+(SUMPRODUCT(G13:G15,H13:H15))) -> -3349874279
A20: Cheques adelantados recibidos de clientes | B20: Moneda Extranjera otros | D20: 0
A21: Cheques rechazados | B21: Moneda Local Guaraníes | D21: 0 | F21: TOTAL NETO DE LA CARTERA DE CRÉDITOS | G21: =G17+G19 -> 2.167049398e+10
A22: Cheques rechazados | B22: Moneda Extranjera Dólares | D22: 0
A23: Otros | B23: Moneda Local Guaraníes | D23: 0 | F23: Observaciones
A24: Otros | B24: Moneda Extranjera Dólares | D24: 0 | F24: Criterios de Clasificación utilizados | G24: De | H24: A
A25: Otros | B25: Moneda Extranjera otros | D25: 0 | F25: Normal | G25: 1 | H25: 90
A26: Menos Previsiones | C26: -1576743123 | D26: -1622718613 | F26: En Gestión de Cobro | G26: 91 | H26: 180
A27: Total | C27: =+SUM($C$9:C26) -> 17024505066 | D27: =+SUM($D$9:D26) -> 17183482477 | F27: En Gestión de Cobro Judicial | G27: 180 | H27: 1080
A30: Las cuentas a cobrar comerciales a largo plazo se integran como sigue:
C31: En guaraníes
C32: =IFERROR(IF(Indice!B6="","2XX2",YEAR(Indice!B6)),"2XX2") -> 2022 | D32: =IFERROR(YEAR(Indice!B6-365),"2XX1") -> 2021
A33: Deudores por ventas locales | B33: Moneda Local Guaraníes | C33: =4645988917-C34 -> 87536615.95 | D33: 217352586.8
A34: Deudores por ventas locales | B34: Moneda Extranjera Dólares | C34: 4558452301 | D34: 4365026967
A35: Deudores por ventas locales | B35: Moneda Extranjera otros | D35: 0
A36: Deudores por ventas en el exterior | B36: Moneda Local Guaraníes | D36: 0
A37: Deudores por ventas en el exterior | B37: Moneda Extranjera Dólares | D37: 0
A38: Deudores por ventas en el exterior | B38: Moneda Extranjera otros | D38: 0
A39: Deudores - Entidad relacionada | B39: Moneda Local Guaraníes | D39: 0
A40: Deudores - Entidad relacionada | B40: Moneda Extranjera Dólares | D40: 0
A41: Deudores - Entidad relacionada | B41: Moneda Extranjera otros | D41: 0
A42: Cheques adelantados recibidos de clientes | B42: Moneda Local Guaraníes | D42: 0
A43: Cheques adelantados recibidos de clientes | B43: Moneda Extranjera Dólares | D43: 0
A44: Cheques adelantados recibidos de clientes | B44: Moneda Extranjera otros | D44: 0
A45: Deudores en gestión judicial | B45: Moneda Local Guaraníes | C45: 905185328 | D45: 206886420
A46: Deudores en gestión judicial | B46: Moneda Extranjera Dólares | D46: 0
A47: Deudores en gestión judicial | B47: Moneda Extranjera otros | D47: 0
A48: Cheques rechazados | B48: Moneda Local Guaraníes | C48: 137399043 | D48: 150820748
A49: Cheques rechazados | B49: Moneda Extranjera Dólares | C49: 53745603 | D49: 38304766
A50: Deudores en Gestion de Cobro | B50: Moneda Local Guaraníes | D50: 244746114
A51: Clientes Morosos | B51: Moneda Local Guaraníes | C51: =428792197+10140860 -> 438933057 | D51: 852542767
A52: Cheques en Gestion Judicial | B52: Moneda Local Guaraníes | C52: 237868125 | D52: 1720000
A53: Menos Previsiones | C53: -1773131156 | D53: -1495020815
A54: Total | C54: =+SUM($C$33:C53) -> 4645988917 | D54: =+SUM($D$33:D53) -> 4582379554

Sheet Nota 6
A1: =Indice!C1 -> IMAG S.R.L | D1: BG
A4: NOTA 6 - OTROS CRÉDITOS
A5: En guaranies
A6: El rubro de otros créditos se compone como sigue:
A8: Corrientes | E8: No corrientes
A10: Concepto | B10: =IFERROR(IF(Indice!B6="","2XX2",YEAR(Indice!B6)),"2XX2") -> 2022 | C10: =IFERROR(YEAR(Indice!B6-365),"2XX1") -> 2021 | E10: Concepto | F10: =IFERROR(IF(Indice!B6="","2XX2",YEAR(Indice!B6)),"2XX2") -> 2022 | G10: =IFERROR(YEAR(Indice!B6-365),"2XX1") -> 2021
A11: Anticipos a proveedores | B11: 9661224 | C11: 9657247 | E11: Garantía de Alquiler | F11: 35200000 | G11: 35200000
A12: Gastos pagados por adelantado | B12: 140479912 | C12: 0 | E12: I.V.A. Crédito fiscal | F12: 294008816 | G12: 113131042
A13: Anticipo Impuesto a la Renta | B13: 0 | C13: 0 | E13: Prestamo al Personal | F13: 194882892 | G13: 339564468
A14: Retención Impuesto a la Renta | B14: 54597322 | C14: 0 | E14: Gastos pagados por adelantado | F14: 84137130 | G14: 247744173
A15: Retención Impuesto al Valor agregado | B15: 88987932 | C15: 104318712 | E15: Total | F15: =SUM(F11:F14) -> 608228838 | G15: =SUM(G11:G14) -> 735639683
A16: Prestamos del Personal | B16: =313865517-F13 -> 118982625 | C16: 65171711
A17: Anticipo al Personal | B17: 1668320 | C17: 1122467
A18: Tarjeta de Credito | B18: 1175509 | C18: 8679097
A19: IVA a Devengar | B19: 71471527 | C19: 65530125
A20: Total | B20: =SUM($B$11:B19) -> 487024371 | C20: =SUM($C$11:C19) -> 254479359

Sheet Nota 7
A1: =Indice!C1 -> IMAG S.R.L | D1: BG
A4: NOTA 7 – INVENTARIOS
A6: Los bienes de cambio están compuestos de la siguiente manera:
B7: En miles de guaranies
A8: Concepto | B8: =IFERROR(IF(Indice!B6="","2XX2",YEAR(Indice!B6)),"2XX2") -> 2022 | C8: =IFERROR(YEAR(Indice!B6-365),"2XX1") -> 2021
A9: Mercaderías | B9: 32304749085 | C9: 27827265179
A10: Productos terminados | B10: 0 | C10: 0
A11: Productos en proceso | B11: 0 | C11: 0
A12: Materia prima | B12: 0 | C12: 0
A13: Ordenes de Trabajo en Proceso | B13: 978952104 | C13: 275620664
A14: Importaciones en Curso | B14: =874703657+6255849780 -> 7130553437 | C14: 7299008361
A15: (-) Previsión para desvalorización y deterioro de inventario | B15: -931894537 | C15: -932162719
A16: Total | B16: =SUM(B9:B15) -> 39482360089 | C16: =SUM(C9:C15) -> 34469731485

Sheet Nota 8
A1: =Indice!C1 -> IMAG S.R.L | D1: BG
A4: Nota 8 - INVERSIONES EN ASOCIADAS
A5: En guaraníes
A6: Las inversiones en sociedades donde no se ejerce control se describen a continuación
A7: Periodo | B7: =IFERROR(IF(Indice!B6="","2XX2",YEAR(Indice!B6)),"2XX2") -> 2022 | C7: =IFERROR(YEAR(Indice!B6-365),"2XX1") -> 2021
A8: Total Inversión | B8: 25000000 | C8: 25000000
A10: a) Datos sobre la sociedad: | G10: a) Datos sobre la inversión:
D11: =IFERROR(IF(Indice!B6="","2XX2",YEAR(Indice!B6)),"2XX2") -> 2022
A12: Nombre de Sociedad | B12: RUC | C12: Cantidad de acciones | D12: Total Patrimonio neto | E12: Total del resultado | G12: Cantidad de acciones | H12: Participación sobre los votos (%) | I12: Total Inversión (miles de Gs) | J12: Participación sobre el Patrimonio Neto (%) | K12: Total valuación patrimonial proporcional | L12: Resultado sobre inversiones
A13: PIONEROS DEL CHACO S.A. | B13: 80074487-0 | C13: 5 | D13: 51011274578 | E13: -72299550 | G13: 5 | H13: =5/2000 -> 0.0025 | I13: 25000000 | J13: =I13/D13 -> 0.0004900877347 | K13: =J13*D13 -> 25000000 | L13: =J13*E13 -> -35433.12268
K14: =J14*D14 -> 0 | L14: =J14*E14 -> 0
K15: 0 | L15: 0
K16: 0 | L16: 0
K17: 0 | L17: 0

Sheet Nota 9
A1: =Indice!C1 -> IMAG S.R.L | L1: BG
A5: Obs.:
A6: Incluir aclaraciones en los siguientes casos:
A7: 1. Cuando los bienes de uso tienen alguna restricción sobre su utilización, como por ejemplo cuando están garantizando obligaciones. En su caso también hacer referencia a la nota correspondiente.
A8: 2. Cuando exista alguna previsión por desvalorización (“deterioro”), detallando la evolución de la misma en el transcurso del año.
A9: 3. Si se están capitalizando intereses al costo de bienes de uso. En su caso deberá aclararse la tasa utilizada para la capitalización.
A10: Ver adicionalmente Norma de Información Financiera N° 11 Propiedades, planta y equipo
A12: NOTA 9 - PROPIEDADES, PLANTA Y EQUIPO - NETO
A13: En guaraníes | J13: -1
B15: Costo histórico revaluado al inicio del año | C15: Adquisiciones | D15: Bajas | E15: Revalúo del año | F15: Valor de origen revaluado al final del año | G15: Depreciación acumulada revaluada al inicio del año | H15: Depreciación del año | I15: Bajas de depreciaciones acumuladas | J15: Revalúo depreciación acumulada del año | K15: Depreciación acumulada revaluada al final del año | L15: Valor neto contable
L16: =IFERROR(IF(Indice!B6="","2XX2",YEAR(Indice!B6)),"2XX2") -> 2022 | M16: =IFERROR(YEAR(Indice!B6-365),"2XX1") -> 2021
A17: Instalaciones | B17: 350215644 | C17: 0 | D17: 0 | E17: 0 | F17: =+B17+C17-D17+E17 -> 350215644 | G17: 76514625 | H17: =2158572*3 -> 6475716 | I17: 0 | J17: 0 | K17: =+G17+H17-I17+J17 -> 82990341 | L17: =+F17-K17 -> 267225303 | M17: 273701019
A18: Rodados | B18: 1446018902 | C18: =254781806+102037024+102037024+34541500 -> 493397354 | D18: 0 | E18: 0 | F18: =+B18+C18-D18+E18 -> 1939416256 | G18: 690360396 | H18: =19311269*3 -> 57933807 | I18: 0 | J18: 0 | K18: =+G18+H18-I18+J18 -> 748294203 | L18: =+F18-K18 -> 1191122053 | M18: 755658506
A19: Equipos de computación | B19: 213905136 | C19: =2590909+1570000 -> 4160909 | D19: 0 | E19: 0 | F19: =+B19+C19-D19+E19 -> 218066045 | G19: 138904016 | H19: =3613430*3 -> 10840290 | I19: 0 | J19: 0 | K19: 149744306 | L19: 68321739 | M19: 75001120
A20: Muebles y útiles | B20: 475935290 | C20: 815455 | D20: 0 | E20: 0 | F20: 476750745 | G20: 259395235 | H20: =+(5747456*3)+(22143*3) -> 17308797 | I20: 0 | J20: 0 | K20: 276704032 | L20: 200046713 | M20: 216540055
A21: Herramienta y Enseres | B21: 184530548 | C21: 1592871 | D21: 0 | E21: 0 | F21: 186123419 | G21: 95250682 | H21: =+(2640082*3)+40865 -> 7961111 | I21: 0 | J21: 0 | K21: 103211793 | L21: 82911626 | M21: 89279866
A22: Maquinarias y herramientas | B22: 365433048 | C22: 0 | D22: 0 | E22: 0 | F22: 365433048 | G22: 90161448 | H22: =4688078*3 -> 14064234 | I22: 0 | J22: 0 | K22: 104225682 | L22: 261207366 | M22: 275271600
A23: Const. y Mejoras en Predio Ajeno | B23: 103482429 | C23: 0 | D23: 0 | E23: 0 | F23: 103482429 | G23: 47088138 | H23: =+(1003370*3)+(40865*2) -> 3091840 | I23: 0 | J23: 0 | K23: 50179978 | L23: 53302451 | M23: 56394291
A24: Edificios | B24: 5463666111 | C24: 0 | D24: 0 | E24: 0 | F24: 5463666111 | G24: 575764706 | H24: =10846012*3 -> 32538036 | I24: 0 | J24: 0 | K24: 608302742 | L24: 4855363369 | M24: 4887901405
A25: Terrenos | B25: 6884241873 | C25: 0 | D25: 0 | E25: 0 | F25: 6884241873 | G25: 0 | H25: 0 | I25: 0 | J25: 0 | K25: 0 | L25: 6884241873 | M25: 6884241873
A26: Totales | B26: =SUM(B17:B25) -> 15487428981 | C26: =SUM(C17:C25) -> 499966589 | D26: 0 | E26: 0 | F26: 15987395570 | G26: 1973439246 | H26: 150213831 | I26: 0 | J26: 0 | K26: 2123653077 | L26: =SUM($L$17:L25) -> 13863742493 | M26: =SUM($M$17:M25) -> 13513989735
B28: =473656335-B20 -> -2278955

Sheet Nota 10
A1: =Indice!C1 -> IMAG S.R.L | C1: BG
A4: NOTA 10 – ACTIVOS DISPONIBLES PARA LA VENTA
B5: En guaranies
B6: =IFERROR(IF(Indice!B6="","2XX2",YEAR(Indice!B6)),"2XX2") -> 2022 | C6: =IFERROR(YEAR(Indice!B6-365),"2XX1") -> 2021
A7: Propiedad, planta y equipo
A8: (Detallar bienes de uso)
A9: Total | B9: =B8 -> 0 | C9: =C8 -> 0
A11: Activos intangibles
A12: (Detallar activos intangibles)
A13: Total | B13: =B12 -> 0 | C13: =C12 -> 0
A15: Inversiones
A16: (Detallar Inversiones
A17: Total | B17: =B16 -> 0 | C17: =C16 -> 0
A19: Total general | B19: =B9+B13+B17 -> 0 | C19: =C9+C13+C17 -> 0

Sheet Nota 11
A1: =Indice!C1 -> IMAG S.R.L | F1: BG
A4: NOTA 11 – ACTIVOS INTANGIBLES
B5: En guaranies
A6: Activos intangibles | B6: =IFERROR(IF(Indice!B6="","2XX2",YEAR(Indice!B6)),"2XX2") -> 2022 | C6: =IFERROR(YEAR(Indice!B6-365),"2XX1") -> 2021
A7: Sistema Informatico | B7: 290317758 | C7: 290317758
A8: Marcas | B8: 2006564 | C8: 2561108
A9: Menos amortización acumulada | B9: -278499584 | C9: -260772311
A11: Total general | B11: =SUM(B7:B10) -> 13824738 | C11: =SUM(C7:C10) -> 32106555

Sheet Nota 12
A1: =Indice!C1 -> IMAG S.R.L | E1: BG
A5: NOTA 12 – GOODWILL
B6: En guaranies
A7: Goodwill | B7: =IFERROR(IF(Indice!B6="","2XX2",YEAR(Indice!B6)),"2XX2") -> 2022 | C7: =IFERROR(YEAR(Indice!B6-365),"2XX1") -> 2021
A11: Total general | B11: =SUM(B8:B10) -> 0 | C11: =SUM(C8:C10) -> 0

Sheet Nota 13
A1: =Indice!C1 -> IMAG S.R.L | C1: BG
A4: NOTA 13 – CUENTAS POR PAGAR COMERCIALES
A5: En guaranies
A6: Las cuentas por pagar comerciales se componen como sigue:
A8: Corrientes | B8: Simbología según ISO 4217 | C8: Indicación de Moneda | D8: =IFERROR(IF(Indice!B6="","2XX2",YEAR(Indice!B6)),"2XX2") -> 2022 | E8: =IFERROR(YEAR(Indice!B6-365),"2XX1") -> 2021
A9: Proveedores - Entidades Relacionadas | C9: =IFERROR(VLOOKUP(B9,'Base de Monedas'!A:B,2,0),"") -> 
A10: Otros proveedores del exterior | C10: =IFERROR(VLOOKUP(B10,'Base de Monedas'!A:B,2,0),"") -> 
A11: Proveedores locales | B11: USD | C11: DÓLAR ESTADOUNIDENSE | D11: 3059200819 | E11: 1661159884
A12: Proveedores locales | B12: PYG | C12: GUARANI | D12: =3393229147-D11 -> 334028328.2 | E12: 598342345.8
A13: Total cuentas a pagar por comerciales | D13: =SUM($D$9:D12) -> 3393229147 | E13: =SUM(E11:E12) -> 2259502230
A17: No Corrientes | B17: Simbología según ISO 4217 | C17: Indicación de Moneda | D17: =IFERROR(YEAR(Indice!B6),"2XX2") -> 2022 | E17: =IFERROR(YEAR(Indice!B6-365),"2XX1") -> 2021
A18: Proveedores - Entidades Relacionadas | C18: =IFERROR(VLOOKUP(B18,'Base de Monedas'!A:B,2,0),"") ->  | D18: 32924483 | E18: 0
A19: Otros proveedores del exterior | C19: =IFERROR(VLOOKUP(B19,'Base de Monedas'!A:B,2,0),"") ->  | D19: 0 | E19: 0
A20: Proveedores locales | C20: =IFERROR(VLOOKUP(B20,'Base de Monedas'!A:B,2,0),"") ->  | D20: 0 | E20: 0
C21: =IFERROR(VLOOKUP(B21,'Base de Monedas'!A:B,2,0),"") ->  | D21: 0 | E21: 0
A22: Total cuentas a pagar por comerciales | D22: =SUM($D$18:D21) -> 32924483 | E22: =SUM(E18:E21) -> 0

Sheet Nota 14
A1: =Indice!C1 -> IMAG S.R.L | E1: BG | L1: BG
A4: NOTA 14 – PRESTAMOS A CORTO Y LARGO PLAZO
A6: (a) Equivalentes al tipo de cambio referencial de la fecha de presentacion
A7: (b) Obligaciones garantizadas por valor de guaraníes………..
A9: Corrientes
D10: =IFERROR(IF(Indice!B6="","2XX2",YEAR(Indice!B6)),"2XX2") -> 2022 | J10: =IFERROR(YEAR(Indice!B6-365),"2XX1") -> 2021
A11: Préstamos de Entidades Locales | B11: Vencimiento | C11: Símbolo de Moneda | D11: Moneda | E11: Importe (Gs) | F11: Tipo de Garantía | H11: Vencimiento | I11: Símbolo de Moneda | J11: Moneda | K11: Importe (Gs) | L11: Tipo de Garantía
A12: Banco Itau | B12: 2023-01-03 | C12: PYG | D12: =IFERROR(VLOOKUP(C12,'[1]Base de Monedas'!A:B,2,0),"") -> Guaraní | E12: =350000000 +412500000 +412500000 +412500000 +412500000 -> 2000000000 | H12: 2022-03-22 | I12: PYG | J12: Guaraní | K12: 1100000000
A13: Banco Itau | B13: 2023-01-17 | C13: PYG | D13: =IFERROR(VLOOKUP(C13,'[1]Base de Monedas'!A:B,2,0),"") -> Guaraní | E13: 762500000 | H13: 2022-11-22 | I13: PYG | J13: Guaraní | K13: 0
A14: Banco Itau | B14: 2022-09-27 | C14: USD | D14: =IFERROR(VLOOKUP(C14,'[1]Base de Monedas'!A:B,2,0),"") -> Dólar estadounidense | E14: =(200000*6931.47) -> 1386294000 | H14: 2022-10-11 | I14: PYG | J14: Guaraní | K14: 0
A15: Banco Familiar | B15: 2023-01-12 | C15: PYG | D15: =IFERROR(VLOOKUP(C15,'[1]Base de Monedas'!A:B,2,0),"") -> Guaraní | E15: =5000000 +500000000 +500000000 +1100000000 -> 2105000000 | H15: 2022-11-15 | I15: PYG | J15: Guaraní | K15: 0
A16: Banco Atlas | B16: 2022-04-12 | C16: PYG | D16: =IFERROR(VLOOKUP(C16,'[1]Base de Monedas'!A:B,2,0),"") -> Guaraní | E16: =750000000 +750000000 -> 1500000000 | H16: 2022-02-22 | I16: PYG | J16: Guaraní | K16: 3000000000
A17: Banco Atlas | B17: 2023-03-07 | C17: PYG | D17: =IFERROR(VLOOKUP(C17,'[1]Base de Monedas'!A:B,2,0),"") -> Guaraní | E17: =300000000 +350000000 +350000000 -> 1000000000 | H17: 2022-08-09 | I17: PYG | J17: Guaraní | K17: 0
A18: Banco Atlas | B18: 2023-02-14 | C18: USD | D18: =IFERROR(VLOOKUP(C18,'[1]Base de Monedas'!A:B,2,0),"") -> Dólar estadounidense | E18: =(185000*6931.47) -> 1282321950 | H18: 2022-08-23 | I18: PYG | J18: Guaraní | K18: 405000000
A19: GNB En Proceso de Fusión | B19: 2022-06-01 | C19: PYG | D19: =IFERROR(VLOOKUP(C19,'[1]Base de Monedas'!A:B,2,0),"") -> Guaraní | E19: =400000000 +400000000 +400000000 +400000000 +400000000 -> 2000000000 | H19: 2022-04-12 | I19: PYG | J19: Guaraní | K19: 1500000000
A20: GNB En Proceso de Fusión | B20: 2022-06-14 | C20: PYG | D20: =IFERROR(VLOOKUP(C20,'[1]Base de Monedas'!A:B,2,0),"") -> Guaraní | E20: =1000000000 +1000000000 -> 2000000000 | H20: 2022-10-14 | I20: PYG | J20: Guaraní | K20: 5400000000
A21: GNB En Proceso de Fusión | B21: 2022-09-26 | C21: PYG | D21: =IFERROR(VLOOKUP(C21,'[1]Base de Monedas'!A:B,2,0),"") -> Guaraní | E21: =240000000 +290000000 +290000000 +290000000+290000000 -> 1400000000 | K21: 0
K22: 0
A23: Deudas bursátiles | D23: =IFERROR(VLOOKUP(C23,'[2]Base de Monedas'!A:B,2,0),"") ->  | K23: 282431758
A24: Sobregiro Bancario | D24: =IFERROR(VLOOKUP(C24,'[2]Base de Monedas'!A:B,2,0),"") ->  | E24: 279248055
A25: Préstamos de Entidades en el Exterior | D25: =IFERROR(VLOOKUP(C25,'[2]Base de Monedas'!A:B,2,0),"") ->  | K25: 0
A26: Nombre de la entidad financiera | D26: =IFERROR(VLOOKUP(C26,'[2]Base de Monedas'!A:B,2,0),"") ->  | E26: 0 | K26: 0
A27: Nombre de la entidad financiera | D27: =IFERROR(VLOOKUP(C27,'[2]Base de Monedas'!A:B,2,0),"") ->  | E27: 0
K28: 0
A29: Deudas bursátiles | D29: =IFERROR(VLOOKUP(C29,'[2]Base de Monedas'!A:B,2,0),"") ->  | E29: 0
A31: Intereses préstamos entidades financieras a pagar | D31: =IFERROR(VLOOKUP(C31,'[2]Base de Monedas'!A:B,2,0),"") -> 
A32: Intereses a pagar | D32: =IFERROR(VLOOKUP(C32,'[2]Base de Monedas'!A:B,2,0),"") ->  | E32: =429936732+65053490+537106352+211214710 -> 1243311284 | K32: 430102113.3
A33: (-) Intereses a Devengar | E33: =-237954546-52442559-370879661-120357398 -> -781634164 | K33: -251117817
A34: Intereses deudas bursátiles a pagar | D34: =IFERROR(VLOOKUP(C34,'[2]Base de Monedas'!A:B,2,0),"") ->  | K34: 0
A35: Intereses a pagar | D35: =IFERROR(VLOOKUP(C35,'[2]Base de Monedas'!A:B,2,0),"") ->  | E35: 0 | K35: 0
A36: (-) Intereses a Devengar | D36: =IFERROR(VLOOKUP(C36,'[2]Base de Monedas'!A:B,2,0),"") ->  | E36: 0 | K36: 0
A37: Total | D37: =IFERROR(VLOOKUP(C37,'[2]Base de Monedas'!A:B,2,0),"") ->  | E37: =SUM(E$12:$E35) -> 16177041125 | K37: =SUM($K$12:K36) -> 1.186641605e+10
A40: No Corrientes
D41: =IFERROR(IF(Indice!B6="","2XX2",YEAR(Indice!B6)),"2XX2") -> 2022 | J41: =IFERROR(YEAR(Indice!B6-365),"2XX1") -> 2021
A42: Préstamos de Entidades Locales | B42: Vencimiento | C42: Símbolo de Moneda | D42: Moneda | E42: Importe (miles de Gs) | F42: Tipo de garantía | H42: Vencimiento | I42: Símbolo de Moneda | J42: Moneda | K42: Importe (miles de Gs) | L42: Tipo de Garantía
A43: Banco Itau | B43: 2023-05-26 | C43: PYG | D43: =IFERROR(VLOOKUP(C43,'[1]Base de Monedas'!A:B,2,0),"") -> Guaraní | E43: =2937500000-1175000000 -> 1762500000 | H43: 2023-01-03 | I43: PYG | J43: Guaraní | K43: 412500000
A44: Banco Itau | D44: =IFERROR(VLOOKUP(C44,'[1]Base de Monedas'!A:B,2,0),"") ->  | E44: 0 | H44: 2023-01-17 | I44: PYG | J44: Guaraní | K44: 850000000
A45: Banco Itau | E45: 0 | H45: 2023-05-26 | I45: PYG | J45: Guaraní | K45: 1675000000
A46: Banco Familiar | B46: 2023-08-08 | C46: PYG | D46: =IFERROR(VLOOKUP(C46,'[1]Base de Monedas'!A:B,2,0),"") -> Guaraní | E46: =6095000000-4505000000 -> 1590000000 | H46: 2023-08-08 | I46: PYG | J46: Guaraní | K46: 1600000000
A47: Banco Familiar | E47: 0 | H47: 2023-09-12 | I47: PYG | J47: Guaraní | K47: 3395000000
A48: Deudas bursátiles | D48: =IFERROR(VLOOKUP(C48,'[1]Base de Monedas'!A:B,2,0),"") ->  | E48: 0 | K48: 0
A49: (Incluir programas de forma individual) | D49: =IFERROR(VLOOKUP(C49,'[1]Base de Monedas'!A:B,2,0),"") ->  | E49: 0 | K49: 0
A50: Préstamos de Entidades en el Exterior | D50: =IFERROR(VLOOKUP(C50,'[1]Base de Monedas'!A:B,2,0),"") -> 
A51: Nombre de la entidad financiera | D51: =IFERROR(VLOOKUP(C51,'[1]Base de Monedas'!A:B,2,0),"") ->  | E51: 0 | K51: 0
A52: Nombre de la entidad financiera | D52: =IFERROR(VLOOKUP(C52,'[1]Base de Monedas'!A:B,2,0),"") ->  | E52: 0 | K52: 0
A53: (incluir otras entidades) | D53: =IFERROR(VLOOKUP(C53,'[1]Base de Monedas'!A:B,2,0),"") ->  | E53: 0 | K53: 0
A54: Deudas bursátiles | D54: =IFERROR(VLOOKUP(C54,'[1]Base de Monedas'!A:B,2,0),"") ->  | E54: 0 | K54: 0
A55: (Incluir programas de forma individual) | D55: =IFERROR(VLOOKUP(C55,'[1]Base de Monedas'!A:B,2,0),"") ->  | E55: 0 | K55: 0
A56: Intereses préstamos entidades financieras a pagar | D56: =IFERROR(VLOOKUP(C56,'[1]Base de Monedas'!A:B,2,0),"") -> 
A57: Intereses a pagar | D57: =IFERROR(VLOOKUP(C57,'[1]Base de Monedas'!A:B,2,0),"") ->  | E57: =(80374852+307264492)-'Nota 15'!B12 -> 143876103 | K57: 378687075
A58: (-) Intereses a Devengar | E58: =((46178562+162246599)*-1)-'Nota 15'!B14 -> -77359021 | K58: -231508019
A59: Intereses deudas bursátiles a pagar | D59: =IFERROR(VLOOKUP(C59,'[1]Base de Monedas'!A:B,2,0),"") ->  | J59: =IFERROR(VLOOKUP(I59,'[1]Base de Monedas'!A:B,2,0),"") -> 
A60: Intereses a pagar | D60: =IFERROR(VLOOKUP(C60,'[1]Base de Monedas'!A:B,2,0),"") ->  | J60: =IFERROR(VLOOKUP(I60,'[1]Base de Monedas'!A:B,2,0),"") -> 
A61: (-) Intereses a Devengar | D61: =IFERROR(VLOOKUP(C61,'[1]Base de Monedas'!A:B,2,0),"") -> 
A62: Total | D62: =IFERROR(VLOOKUP(C62,'[1]Base de Monedas'!A:B,2,0),"") ->  | E62: =SUM($E$43:E61) -> 3419017082 | J62: =IFERROR(VLOOKUP(I62,'[1]Base de Monedas'!A:B,2,0),"") ->  | K62: =SUM($K$43:K61) -> 8079679056
J63: =IFERROR(VLOOKUP(I63,'[1]Base de Monedas'!H:I,2,0),"") -> 

Sheet Nota 15
A1: =Indice!C1 -> IMAG S.R.L | D1: BG
A5: NOTA 15 – PORCION CORRIENTE DE LA DEUDA A LARGO PLAZO
B7: En guaranies
A8: Porción corriente de la deuda a largo plazo | B8: =IFERROR(IF(Indice!B6="","2XX2",YEAR(Indice!B6)),"2XX2") -> 2022 | C8: =IFERROR(YEAR(Indice!B6-365),"2XX1") -> 2021
A9: Cuentas por pagar comerciales | B9: 0 | C9: 0
A10: Préstamos bancarios | B10: =4505000000+1175000000 -> 5680000000 | C10: 3062500000
A11: Bonos bursátiles | B11: 0 | C11: 0
A12: Intereses bancarios a pagar | B12: 243763241 | C12: 698781482.7
A13: Intereses bursatiles a pagar | B13: 0 | C13: 0
A14: Interes a Vencer | B14: -131066140 | C14: -492387244
B15: 0 | C15: 0
A16: Total general | B16: =SUM($B$9:B15) -> 5792697101 | C16: =SUM($C$9:C15) -> 3268894239

Sheet Nota 16
A1: =Indice!C1 -> IMAG S.R.L | F1: BG
A4: NOTA 16 – REMUNERACIONES Y CARGAS SOCIALES A PAGAR
B6: En guaranies
A7: Remuneraciones y cargas sociales a pagar | B7: =IFERROR(IF(Indice!B6="","2XX2",YEAR(Indice!B6)),"2XX2") -> 2022 | C7: =IFERROR(YEAR(Indice!B6-365),"2XX1") -> 2021
A8: Sueldo y otras remuneraciones a pagar | B8: 0 | C8: 0
A9: Aportes y retenciones a pagar | B9: 95878268 | C9: 90262560
A10: Remuneraciones al personal superior a pagar | B10: 0 | C10: 0
A11: (Indicar otras cuentas) | B11: 0 | C11: 0
A12: Total | B12: =SUM($B$8:B11) -> 95878268 | C12: =SUM($C$8:C11) -> 90262560

Sheet Nota 17
A1: =Indice!C1 -> IMAG S.R.L | G1: BG
A5: NOTA 17 – IMPUESTOS A PAGAR
B7: En guaranies
A8: Impuestos a pagar | B8: =IFERROR(IF(Indice!B6="","2XX2",YEAR(Indice!B6)),"2XX2") -> 2022 | C8: =IFERROR(YEAR(Indice!B6-365),"2XX1") -> 2021
A9: Impuesto a la renta a pagar | B9: 151243962 | C9: 151243962
A10: Otros impuestos a pagar | B10: 0 | C10: 0
A11: I.V.A Debito Fiscal | B11: 0 | C11: 0
A12: Total | B12: =SUM($B$9:B11) -> 151243962 | C12: =SUM($C$9:C11) -> 151243962

Sheet Nota 18
A1: =Indice!C1 -> IMAG S.R.L | D1: BG
A4: NOTA 18 - PROVISIONES
B6: En guaranies
A7: Provisiones | B7: =IFERROR(IF(Indice!B6="","2XX2",YEAR(Indice!B6)),"2XX2") -> 2022 | C7: =IFERROR(YEAR(Indice!B6-365),"2XX1") -> 2021
A9: Alquileres a Pagar | B9: 0 | C9: 0
A10: Servicios Basicos a Pagar | B10: 0 | C10: 0
A11: Honorarios Profesionales a Pagar | B11: 0 | C11: 0
A12: Prov. Imp. A la renta | B12: 260340205 | C12: 0
A13: Prov. Para donaciones | B13: 193453014 | C13: 0
A14: Prov. Para aguinaldo | B14: 95248103 | C14: 0
A15: Prov. Comisiones a pagar | B15: 11084945 | C15: 0
A16: Prov. Remuneraciones | B16: 8750001 | C16: 0
A17: Prov. Premios | B17: 24000000 | C17: 0
A18: Prov. Proveedores a Pagar | B18: 11246758 | C18: 9712301
A19: Prov. Recupero Desc. Covid | B19: 0 | C19: 0
A20: Prov. Bono Anual | B20: 215000000 | C20: 310000000
A21: Total | B21: =SUM($B$9:B20) -> 819123026 | C21: =SUM($C$9:C20) -> 319712301

Sheet Nota 19
A1: =Indice!C1 -> IMAG S.R.L | D1: BG
A3: NOTA 19 – OTROS PASIVOS CORRIENTES y NO CORRIENTES
A4: En guaranies
A6: Corrientes | B6: =IFERROR(IF(Indice!B6="","2XX2",YEAR(Indice!B6)),"2XX2") -> 2022 | C6: =IFERROR(YEAR(Indice!B6-365),"2XX1") -> 2021 | E6: No Corrientes | F6: =IFERROR(IF(Indice!B6="","2XX2",YEAR(Indice!B6)),"2XX2") -> 2022 | G6: =IFERROR(YEAR(Indice!B6-365),"2XX1") -> 2021
A7: Retencion de IVA a pagar | B7: 28776151 | C7: 20711099 | E7: Retencion de IVA a pagar | F7: 0 | G7: 0
A8: Retencion Impuesto a la renta a Pagar | B8: 11159351 | C8: 0 | E8: Retencion Impuesto a la renta a Pagar | F8: 0 | G8: 0
A9: Impuestos diferidos | B9: 0 | C9: 0 | E9: Impuestos diferidos | F9: 0 | G9: 0
A10: Otros ingresos diferidos (Adelanto de Cliente) | B10: 0 | C10: 0 | E10: Otros ingresos diferidos | F10: 0 | G10: 0
A11: Ingreso Diferido | B11: 271002689 | C11: 0 | E11: Ingreso Diferido | F11: 0 | G11: 0
A12: Cargo Diferido | B12: -172681356 | C12: 0 | E12: Cargo Diferido | F12: 0 | G12: 0
A13: Cheques Emitidos Diferido | B13: 0 | C13: 0 | E13: Otros Pasivos con Entidades relacionadas | F13: 0 | G13: 0
A14: Previsiones para contingencias/Indemnizaciones y despidos | B14: 647847286 | C14: 874468830 | E14: Previsiones para contingencias/Indemnizaciones y despidos | F14: 0 | G14: 0
A15: Prevision Perdida de Activo Fijo | B15: 0 | C15: 0 | E15: Prevision Perdida de Activo Fijo | F15: 0 | G15: 0
A16: Previsiones por Garantia Auto. CF- Moto / Garantia Motos | B16: =314765405+95610612 -> 410376017 | C16: 410376017 | E16: Previsiones por Garantia Auto. CF- Moto / Garantia Motos | F16: 0 | G16: 0
A17: Premios a Pagar | B17: 47675000 | C17: 47675000 | E17: Garantia de Alquiler | F17: 0 | G17: 0
A18: Adelantos de Clientes | B18: 414374185 | C18: 309466942 | E18: Dividendos a Pagar | F18: 0 | G18: 0
A19: Garantia de Alquiler | B19: 6400000 | C19: 6400000 | E19: Total | F19: =SUM(F7:F18) -> 0 | G19: =SUM(G7:G18) -> 0
A20: Recupero Desc. Covid a Pagar | B20: 0 | C20: 0
A21: Dividendos a Pagar | B21: 699000000 | C21: 1049500000
A22: Total | B22: =SUM(B7:B21) -> 2363929323 | C22: =SUM(C7:C21) -> 2718597888

Sheet Nota 20
A1: =Indice!C1 -> IMAG S.R.L | D1: BG
A4: NOTA 20 – CAPITAL INTEGRADO
A6: Fecha | B6: =IFERROR(IF(Indice!B6="","2XX2",YEAR(Indice!B6)),"2XX2") -> 2022 | C6: =IFERROR(YEAR(Indice!B6-365),"2XX1") -> 2021
A7: Monto Capital Social | B7: 5155840000 | C7: 5155840000
A8: Monto Capital Integrado | B8: 5155840000 | C8: 5155840000
A9: Cantidad de Acciones | B9: 0 | C9: 0
A10: Valor Nominal de Acciones | B10: 0 | C10: 0
A11: Total | B11: =+B8 -> 5155840000 | C11: =+C8 -> 5155840000

Sheet Nota 21
A1: =Indice!C1 -> IMAG S.R.L | F1: BG
A4: NOTA 21 – RESERVAS
B6: En guaranies
B7: =IFERROR(IF(Indice!B6="","2XX2",YEAR(Indice!B6)),"2XX2") -> 2022 | C7: =IFERROR(YEAR(Indice!B6-365),"2XX1") -> 2021
A8: a Reserva de revalúo | B8: 3380681039 | C8: 3380681039
A12: b Reserva legal | B12: 1000000000 | C12: 1000000000
A16: c Reservas estatutarias
A20: d Reservas facultativas | B20: =+SUM($B$21:B26) -> 25285413706 | C20: =+SUM($C$21:C26) -> 25285413706
A21: Facultativa | B21: 17327139568 | C21: 17327139568
A22: Para Futura Capitalizacion | B22: 7958274138 | C22: 7958274138

Sheet Nota 22
A1: =Indice!C1 -> IMAG S.R.L | F1: BG
A4: NOTA 22 – DIFERENCIA TRANSITORIA POR CONVERSION
B6: En guaranies
B7: =IFERROR(IF(Indice!B6="","2XX2",YEAR(Indice!B6)),"2XX2") -> 2022 | C7: =+IFERROR(YEAR(Indice!B6-365),"2XX1") -> 2021
A8: Diferencia transitoria por conversión

Sheet Nota 23
A1: =Indice!C1 -> IMAG S.R.L | F1: BG
A4: NOTA 23 – RESULTADOS ACUMULADOS
B6: En guaranies
B7: =IFERROR(IF(Indice!B6="","2XX2",YEAR(Indice!B6)),"2XX2") -> 2022 | C7: =+IFERROR(YEAR(Indice!B6-365),"2XX1") -> 2021
A8: Resultado de ejercicios anteriores | B8: 8466493744 | C8: 0
A9: Resultado del ejercicio actual | B9: 1797939127 | C9: 8466493744
A10: Totales | B10: =SUM($B$8:B9) -> 10264432871 | C10: =SUM($C$8:C9) -> 8466493744

Sheet Nota 24
A1: =Indice!C1 -> IMAG S.R.L | F1: BG
A4: NOTA 24 – INTERES MINORITARIO
B6: En guaranies
B7: =IFERROR(IF(Indice!B6="","2XX2",YEAR(Indice!B6)),"2XX2") -> 2022 | C7: =+IFERROR(YEAR(Indice!B6-365),"2XX1") -> 2021
A8: Interes Minoritario

Sheet Nota 25
A1: =Indice!C1 -> IMAG S.R.L | E1: ER
A5: NOTA 25 – VENTAS
B8: En guaranies
B9: =IFERROR(IF(Indice!B6="","2XX2",YEAR(Indice!B6)),"2XX2") -> 2022 | C9: =+IFERROR(YEAR(Indice!B6-365),"2XX1") -> 2021
A10: Ventas
A11: Ventas linea de negocio 1 - Venta de Mercaderias
A12: Local | B12: =SUM(B13:B14) -> 15287395496 | C12: =+C13+C14 -> 14589901259
A13: Contado | B13: 3979305402 | C13: 3239698809
A14: Crédito | B14: 11308090094 | C14: 11350202450
A15: Exterior | B15: 0 | C15: 0
A16: Contado | B16: 0 | C16: 0
A17: Crédito | B17: 0 | C17: 0
A18: Ventas linea de negocio 2 - Alquileres Cobrados / Servicios Prestados
A19: Local | B19: =SUM(B20:B21) -> 17727274 | C19: =+C20+C21 -> 14654681
A20: Contado | B20: 17727274 | C20: 11745590
A21: Crédito | B21: 0 | C21: 2909091
A22: Exterior | B22: 0 | C22: 0
A23: Contado | B23: 0 | C23: 0
A24: Crédito | B24: 0 | C24: 0
A25: Descuentos y Devoluciones | B25: -1098179728 | C25: -707161956
A26: Total | B26: =+B12+B19+B25 -> 14206943042 | C26: =+C12+C19+C25 -> 13897393984

Sheet Nota 26
A1: =Indice!C1 -> IMAG S.R.L | E1: ER
A5: NOTA 26 - COSTO DE VENTAS
B8: Guaraníes
A9: Costo de ventas | B9: =IFERROR(IF(Indice!B6="","2XX2",YEAR(Indice!B6)),"2XX2") -> 2022 | C9: =+IFERROR(YEAR(Indice!B6-365),"2XX1") -> 2021
A10: Linea de negocio 1
A11: Existencia inicial del inventario | B11: 27827265179 | C11: 18213571210
A12: + Compra de bienes y servicios | B12: 12220358997 | C12: 7758274180
A13: + Costo de producción | B13: 0 | C13: 0
A14: - Existencia final de inventario | B14: -32304749085 | C14: -18381231893
A15: Linea de negocio 2
A16: Existencia inicial del inventario | B16: 0 | C16: 0
A17: + Compra de bienes y servicios | B17: 0 | C17: 0
A18: + Costo de producción | B18: 0 | C18: 0
A19: - Existencia final de inventario | B19: 0 | C19: 0
A20: (nuevas lineas de negocio a incluir) | B20: 0 | C20: 0
A21: Total costo de ventas | B21: =SUM($B$10:B20) -> 7742875091 | C21: =SUM($C$10:C20) -> 7590613497

Sheet Nota 27
A1: =Indice!C1 -> IMAG S.R.L | G1: ER
A5: NOTA 27 - GASTOS
A6: (Esta nota deberá ser incluida cuando en el estado de resultados se haga mención a una cuenta de carácter general o cuyo nombre no permita una adecuada identificación de la naturaleza del gasto y su importe sea significativo)
A8: El rubro está compuesto de la siguiente forma:
A10: En guaraníes
C11: =IFERROR(IF(Indice!B6="","2XX2",YEAR(Indice!B6)),"2XX2") -> 2022 | F11: =+IFERROR(YEAR(Indice!B6-365),"2XX1") -> 2021
B12: Gastos de Ventas | C12: Gastos Administrativos | D12: Total | E12: Gastos de Ventas | F12: Gastos Administrativos | G12: Total
A13: Movilidad y viáticos | B13: 282714599 | C13: 33380460 | D13: =SUM(B13:C13) -> 316095059 | E13: 62697240 | F13: 1488420 | G13: =SUM(E13:F13) -> 64185660
A14: Gastos de alquiler | B14: 175405514 | C14: 0 | D14: =SUM(B14:C14) -> 175405514 | E14: 72699270 | F14: 7727273 | G14: =SUM(E14:F14) -> 80426543
A15: Computación y redes | B15: 29281813 | C15: 4745486 | D15: 34027299 | E15: 24836840 | F15: 2893109 | G15: 27729949
A16: Gastos por servicios | B16: 81779061 | C16: 0 | D16: 81779061 | E16: 43652554 | F16: 17162352 | G16: 60814906
A17: Honorarios profesionales y asesoramiento | B17: 0 | C17: 0 | D17: 0 | E17: 0 | F17: 0 | G17: 0
A18: Investigación de mercado | B18: 0 | C18: 0 | D18: 0 | E18: 0 | F18: 0 | G18: 0
A19: Impuestos y tasas | B19: 114971497 | C19: 0 | D19: 114971497 | E19: 107817563 | F19: 2698880 | G19: 110516443
A20: Gastos de reparación y mantenimiento | B20: 215908437 | C20: 0 | D20: 215908437 | E20: 239272730 | F20: 28100613 | G20: 267373343
A21: Gastos del personal y capacitación | B21: 32902233 | C21: 0 | D21: 32902233 | E21: 25589923 | F21: 300000 | G21: 25889923
A22: Seguros pagados | B22: 78264150 | C22: 1336364 | D22: 79600514 | E22: 68726859 | F22: 360000 | G22: 69086859
A23: Otros gastos de operación | B23: 182376093 | C23: 0 | D23: 182376093 | E23: 358681906 | F23: 1911818 | G23: 360593724
A24: Remuneraciones de administradores, directores, síndicos y consejo de vigilancia | B24: 217850001 | C24: 0 | D24: 217850001 | E24: 113750001 | F24: 0 | G24: 113750001
A25: Sueldos y Jornales | B25: 366194550 | C25: 344311325 | D25: 710505875 | E25: 247585119 | F25: 264244482 | G25: 511829601
A26: Contribuciones Sociales | B26: 358359438 | C26: 6121262 | D26: 364480700 | E26: 274620110 | F26: 24226547 | G26: 298846657
A27: Regalías y Honorarios por servicios técnicos | B27: 527569118 | C27: 75111819 | D27: 602680937 | E27: 734323633 | F27: 71508164 | G27: 805831797
A28: Gastos de Publicidad y Propaganda | B28: 412065125 | C28: 0 | D28: 412065125 | E28: 180344531 | F28: 6884854 | G28: 187229385
A29: Intereses, multas y recargos impositivos | B29: 418177 | C29: 0 | D29: 418177 | E29: 1790460 | F29: 0 | G29: 1790460
A30: Intereses a bancos e instituciones financieras | B30: 0 | C30: 0 | D30: 0 | E30: 0 | F30: 0 | G30: 0
A31: Depreciación bienes de uso | B31: 150213831 | C31: 0 | D31: 150213831 | E31: 131690442 | F31: 0 | G31: 131690442
A32: Amortización activos intangibles | B32: 554544 | C32: 0 | D32: 554544 | E32: 1850859 | F32: 0 | G32: 1850859
A33: Previsiones | B33: 235284851 | C33: 0 | D33: 235284851 | E33: 280512270 | F33: 0 | G33: 280512270
A34: Gastos No Operativos | B34: 660603931 | C34: 161312166 | D34: 821916097 | E34: 1208985599 | F34: 0 | G34: 1208985599
A35: Total | B35: =SUM(B13:B34) -> 4122716963 | C35: 626318882 | D35: 4749035845 | E35: =SUM(E13:E34) -> 4179427909 | F35: =SUM(F13:F34) -> 429506512 | G35: 4608934421

Sheet Nota 28
A1: =Indice!C1 -> IMAG S.R.L | E1: ER
A4: Nota 28 - Otros Ingresos y gastos operativos
A6: En guaraníes
A8: Otros ingresos | B8: =IFERROR(IF(Indice!B6="","2XX2",YEAR(Indice!B6)),"2XX2") -> 2022 | C8: =+IFERROR(YEAR(Indice!B6-365),"2XX1") -> 2021 | E8: Otros gastos | F8: =IFERROR(IF(Indice!B6="","2XX2",YEAR(Indice!B6)),"2XX2") -> 2022 | G8: =+IFERROR(YEAR(Indice!B6-365),"2XX1") -> 2021
A9: Venta de Bienes de Uso | B9: 35000000 | C9: 272727 | F9: 0
A10: Descuentos Obtenidos | B10: 26370740 | C10: 20011795 | F10: 0
A11: Ganancia por Diferencia de Cambio | B11: 601219152 | C11: 284021198 | F11: 0
A12: Seguro recuperado por siniestro | B12: 3156364 | C12: 4749650 | F12: 0
A13: Incobrable recuperado | B13: 0 | C13: 453192 | F13: 0
A14: Comisiones Cobradas | B14: 2904545 | C14: 1227273 | F14: 0
A15: Ingresos Varios | B15: 7040048 | C15: 15119786 | F15: 0
A16: Desafectacion de Previsiones | B16: 0 | C16: 0 | F16: 0
A18: Total | B18: =SUM($B$9:B17) -> 675690849 | C18: =SUM($C$9:C17) -> 325855621 | E18: Total | F18: =SUM($F$9:F17) -> 0 | G18: =SUM($G$9:G17) -> 0

Sheet Nota 29
A1: =Indice!C1 -> IMAG S.R.L | E1: ER
A5: NOTA 29 - INGRESOS Y GASTOS FINANCIEROS NETOS
A6: En Guaraníes
A8: Ingresos Financieros netos | B8: =IFERROR(IF(Indice!B6="","2XX2",YEAR(Indice!B6)),"2XX2") -> 2022 | C8: =+IFERROR(YEAR(Indice!B6-365),"2XX1") -> 2021 | E8: Gastos Financieros netos | F8: =IFERROR(IF(Indice!B6="","2XX2",YEAR(Indice!B6)),"2XX2") -> 2022 | G8: =+IFERROR(YEAR(Indice!B6-365),"2XX1") -> 2021
A9: Intereses Cobrados | B9: 40145158 | C9: 64997332 | E9: Intereses Pagados | F9: 298797599 | G9: 140165844
A10: Intereses Ganados Banco | B10: 186411 | C10: 3538 | E10: Gastos Bancarios | F10: 73977593 | G10: 60588520
A12: Total ingresos financieros | B12: =SUM($B9:B11) -> 40331569 | C12: =SUM($C9:C11) -> 65000870 | E12: Total gastos financieros | F12: =SUM($F9:F11) -> 372775192 | G12: =SUM($G9:G11) -> 200754364

Sheet Nota 30
A1: =Indice!C1 -> IMAG S.R.L | E1: ER
A4: Nota 30 - Resultado de inversiones en asociadas
A5: En Guaraníes
A8: Resultado de inversiones en asociadas | B8: =IFERROR(IF(Indice!B6="","2XX2",YEAR(Indice!B6)),"2XX2") -> 2022 | C8: =+IFERROR(YEAR(Indice!B6-365),"2XX1") -> 2021
A9: (Detallar cuenta)
A16: Total | B16: =SUM($B9:B15) -> 0 | C16: =SUM($C9:C15) -> 0

Sheet Nota 31
A1: =Indice!C1 -> IMAG S.R.L | E1: ER
A4: Nota 31 - Resultado participación minoritaria
A5: En Guaraníes
A8: Resultado participación minoritaria | B8: =IFERROR(IF(Indice!B6="","2XX2",YEAR(Indice!B6)),"2XX2") -> 2022 | C8: =+IFERROR(YEAR(Indice!B6-365),"2XX1") -> 2021
A9: (Detallar cuenta)
A16: Total | B16: =SUM($B9:B15) -> 0 | C16: =SUM($C9:C15) -> 0

Sheet Nota 32
A1: =Indice!C1 -> IMAG S.R.L | E1: ER
A4: Nota 32 - IMPUESTO A LA RENTA
A5: En guaraníes
B7: =IFERROR(IF(Indice!B6="","2XX2",YEAR(Indice!B6)),"2XX2") -> 2022 | C7: =+IFERROR(YEAR(Indice!B6-365),"2XX1") -> 2021
A8: Impuesto a la renta | B8: 260340205 | C8: 244406902
A10: Total | B10: =SUM($B8:B8) -> 260340205 | C10: =SUM($C8:C8) -> 244406902

Sheet Nota 33
A1: =Indice!C1 -> IMAG S.R.L | E1: ER
A4: Nota 33 - Resultado extraordinario neto de impuesto a la renta
A5: En guaraníes
B7: =IFERROR(IF(Indice!B6="","2XX2",YEAR(Indice!B6)),"2XX2") -> 2022 | C7: =+IFERROR(YEAR(Indice!B6-365),"2XX1") -> 2021
A8: Conceptos
A9: (Detallar)
A15: Total | B15: =SUM($B8:B14) -> 0 | C15: =SUM($C8:C14) -> 0

Sheet Nota 34
A1: =Indice!C1 -> IMAG S.R.L | E1: ER
A4: Nota 34 - Resultado sobre actividades discontinuadas neto de impuesto a la renta
A5: En guaraníes
A7: Resultado sobre actividades discontinuadas neto de impuesto a la renta | B7: =IFERROR(IF(Indice!B6="","2XX2",YEAR(Indice!B6)),"2XX2") -> 2022 | C7: =+IFERROR(YEAR(Indice!B6-365),"2XX1") -> 2021
A9: (nueva cuenta a incluir)
A10: Subtotal
A11: - Impuesto a la renta
A12: Total | B12: =SUM($B8:B11) -> 0 | C12: =SUM($C8:C11) -> 0

Sheet Nota 35
A1: =Indice!C1 -> IMAG S.R.L | E1: ER
A4: NOTA 35- UTILIDAD (PÉRDIDA) NETA DEL AÑO Y POR ACCION ORDINARIA
B7: =IFERROR(IF(Indice!B6="","2XX2",YEAR(Indice!B6)),"2XX2") -> 2022 | C7: =+IFERROR(YEAR(Indice!B6-365),"2XX1") -> 2021
A8: Cantidad de Acciones Ordinarias en Circulación | B8: 0 | C8: 0
A9: Utilidad Neta | B9: =ER!C31 -> 1797939127 | C9: 1643541291
A10: Utilidad Neta por Acción Ordinaria | B10: =IFERROR(B9/B8,0) -> 0 | C10: =IFERROR(C9/C8,0) -> 0

Sheet Nota 36
A1: =Indice!C1 -> IMAG S.R.L | E1: Indice
A4: NOTA 36 - ACTIVOS GRAVADOS
A6: Los siguientes bienes de propiedad de la Sociedad han sido hipotecados y prendados en garantía de obligaciones financieras.
A8: =IFERROR("Al "&DAY(Indice!B6)&" de "&VLOOKUP(MONTH(Indice!B6),Indice!S:T,2,0)&" de "&YEAR(Indice!B6-365),"Al dia... de mes… de año 2XX1…") -> Al 31 de Marzo de 2021
A9: Tipo de Activo | B9: Datos del activo gravado | C9: Tipo de garantía | D9: Importe (indicar moneda) | E9: A favor de
A15: =IFERROR("Al "&DAY(Indice!B6)&" de "&VLOOKUP(MONTH(Indice!B6),Indice!S:T,2,0)&" de "&YEAR(Indice!B6-1),"Al dia... de mes… de año 2XX2…") -> Al 31 de Marzo de 2022
A16: Tipo de Activo | B16: Datos del activo gravado | C16: Tipo de garantía | D16: Importe (indicar moneda) | E16: A favor de

Sheet Nota 37
A1: =Indice!C1 -> IMAG S.R.L | E1: Indice
A4: NOTA 37 - CONTINGENCIAS Y COMPROMISOS
A6: =IFERROR("Los principales contratos suscriptos por la Sociedad, vigentes al "&DAY(Indice!B6)&" de "&VLOOKUP(MONTH(Indice!B6),Indice!S:T,2,0)&" de "&YEAR(Indice!B6-1)&" son:","Los principales contratos suscriptos por la Sociedad, vigentes al … de … 20X2 son:") -> Los principales contratos suscriptos por la Sociedad, vigentes al 31 de Marzo de 2022 son:
A7: a)
A8: b)
A11: =IFERROR("Al "&DAY(Indice!B6)&" de "&VLOOKUP(MONTH(Indice!B6),Indice!S:T,2,0)&" de "&YEAR(Indice!B6-1)&" no existen situaciones contingentes, ni reclamos que pudieran resultar en la generación de obligaciones para la Sociedad adicionales a las que se presentan en estos estados financieros.","Al … de …………... 20X2 no existen situaciones contingentes, ni reclamos que pudieran resultar en la generación de obligaciones para la Sociedad adicionales a las que se presentan en estos estados financieros.") -> Al 31 de Marzo de 2022 no existen situaciones contingentes, ni reclamos que pudieran resultar en la generación de obligaciones para la Sociedad adicionales a las que se presentan en estos estados financieros.
A15: Obs.: Esta información debe estar ajustada a lo requerido por la Norma de Información Financiera N° 5 Contingencias y sucesos que ocurren después de la fecha del balance.

Sheet Nota 38
A1: =Indice!C1 -> IMAG S.R.L | D1: Índice
A4: NOTA 38 - IMPUESTO DIFERIDO
A5: En guaraníes
A6: Al … de …........... 20X2 la Sociedad constituyó una provisión para impuesto a la renta de Guaraníes …... (Al … de …...............20X1: Guaraníes …....) / (La Sociedad no ha constituido provisión para impuesto a la renta, debido a que a esa fecha la misma generó renta imponible que fue compensada con quebrantos impositivos acumulados a esa fecha).
A7: (La Sociedad no ha constituido provisión para impuesto a la renta diferida, debido a que a esa fecha la misma generó renta imponible que fue compensada con quebrantos impositivos acumulados a esa fecha).
A9: El siguiente cuadro detalla las diferencias temporales a la tasa del impuesto a los efectos de determinación del impuesto diferido:
B11: =IFERROR(IF(Indice!B6="","2XX2",YEAR(Indice!B6)),"2XX2") -> 2022 | C11: =+IFERROR(YEAR(Indice!B6-365),"2XX1") -> 2021
A12: Activos y pasivos impositivos diferidos:
A13: Caja y Bancos
A14: Inversiones
A15: Previsión para deudores incobrables
A16: Bienes de uso
A17: Activos intangibles
A18: Previsión del pasivo
A19: Deudas comerciales y bancarias
A20: Bienes de cambio
A21: Sub - total
A22: Previsión para impuestos diferidos netos
A23: Total activo/pasivo impositivo diferido neto antes de quebrantos
A24: Quebranto impositivo
A25: Total

Sheet Nota 39
A1: =Indice!C1 -> IMAG S.R.L | E1: Indice
A5: NOTA 39 - HECHOS POSTERIORES
A6: (En caso en que entre la fecha del cierre del ejercicio y la fecha de emisión de los estados financieros existan hechos posteriores significativos deberá evaluarse el tipo de hecho posterior del que se trate y modificar esta nota según corresponda).
A10: Entre la fecha de cierre del ejercicio y la fecha de preparación de estos estados financieros, no han ocurrido hechos significativos de carácter financiero o de otra índole que afecten la situación patrimonial o financiera o los resultados de la Sociedad al 31 de marzo 2022.

Sheet Nota 40
A1: =Indice!C1 -> IMAG S.R.L | C1: Indice
A5: NOTA 40 - SALDOS Y TRANSACCIONES CON PARTES RELACIONADAS
A6: En guaraníes
B10: =IFERROR(IF(Indice!B6="","2XX2",YEAR(Indice!B6)),"2XX2") -> 2022 | C10: =+IFERROR(YEAR(Indice!B6-365),"2XX1") -> 2021
A11: ACTIVO
A12: Inversiones temporales | B12: 0 | C12: 0
A13: Cuentas a cobrar comerciales | B13: 22276956 | C13: =770000+1935879+11040800 -> 13746679
A14: Otros créditos | B14: 0 | C14: 0
A15: Activo Fijo | B15: 0 | C15: 0
A16: Total activo | B16: =SUM(B12:B15) -> 22276956 | C16: =SUM(C12:C15) -> 13746679
A17: PASIVO
A18: Cuentas por pagar comerciales | B18: =10151375+1450000+5670000 -> 17271375 | C18: =29308198+5197500+5990000 -> 40495698
A19: Préstamos a corto plazo | B19: 0 | C19: 0
A20: Provisiones | B20: 0 | C20: 0
A21: Préstamos a largo plazo | B21: 0 | C21: 0
A22: Otros pasivos | B22: 0 | C22: 0
A23: Total pasivo | B23: =SUM(B18:B22) -> 17271375 | C23: =SUM(C18:C22) -> 40495698
B27: =IFERROR(IF(Indice!B6="","2XX2",YEAR(Indice!B6)),"2XX2") -> 2022 | C27: =+IFERROR(YEAR(Indice!B6-365),"2XX1") -> 2021
A28: Costo de ventas | B28: =+B29+B30 -> 9656185 | C28: =+C29+C30 -> 29308198
A29: Compras a …. | B29: 0 | C29: 0
A30: Record Electric SAECA | B30: =865879+8790306 -> 9656185 | C30: 29308198
A31: Gastos administrativos | B31: =+SUM(B32:B34) -> 7615190 | C31: =+C32+C34 -> 11187500
A32: Mantenimientos y Repaciones | B32: =332500+162690+5670000 -> 6165190 | C32: 0
A33: Publicidad | B33: 1450000 | C33: 0
A34: Otros | B34: 0 | C34: =5197500+5990000 -> 11187500
A35: Gastos financieros | B35: =+B36 -> 0 | C35: =+C36 -> 0
A36: Intereses pagados por préstamos | B36: 0 | C36: 0

Sheet Base de Monedas
A1: PYG | B1: Guaraní | C1: Índice
A2: USD | B2: Dólar estadounidense
A3: EUR | B3: Euro
A4: AED | B4: Dírham de los Emiratos Árabes Unidos
A5: AFN | B5: Afgani
A6: ALL | B6: Lek
A7: AMD | B7: Dram armenio
A8: ANG | B8: Florín antillano neerlandés
A9: AOA | B9: Kwanza
A10: ARS | B10: Peso argentino
A11: AUD | B11: Dólar australiano
A12: AWG | B12: Florín arubeño
A13: AZN | B13: Manat azerbaiyano
A14: BAM | B14: Marco convertible
A15: BBD | B15: Dólar de Barbados
A16: BDT | B16: Taka
A17: BGN | B17: Lev búlgaro
A18: BHD | B18: Dinar bareiní
A19: BIF | B19: Franco de Burundi
A20: BMD | B20: Dólar bermudeño
A21: BND | B21: Dólar de Brunéi
A22: BOB | B22: Boliviano
A23: BOV | B23: MVDOL
A24: BRL | B24: Real brasileño
A25: BSD | B25: Dólar bahameño
A26: BTN | B26: Ngultrum
A27: BWP | B27: Pula
A28: BYN | B28: Rublo bielorruso
A29: BZD | B29: Dólar beliceño
A30: CAD | B30: Dólar canadiense
A31: CDF | B31: Franco congoleño
A32: CHE | B32: Euro WIR
A33: CHF | B33: Franco suizo
A34: CHW | B34: Franco WIR
A35: CLF | B35: Unidad de fomento
A36: CLP | B36: Peso chileno
A37: CNY | B37: Yuan chino
A38: COP | B38: Peso colombiano
A39: COU | B39: Unidad de valor real
A40: CRC | B40: Colón costarricense
A41: CUC | B41: Peso convertible
A42: CUP | B42: Peso cubano
A43: CVE | B43: Escudo caboverdiano
A44: CZK | B44: Corona checa
A45: DJF | B45: Franco yibutiano
A46: DKK | B46: Corona danesa
A47: DOP | B47: Peso dominicano
A48: DZD | B48: Dinar argelino
A49: EGP | B49: Libra egipcia
A50: ERN | B50: Nakfa
A51: ETB | B51: Birr etíope
A52: FJD | B52: Dólar fiyiano
A53: FKP | B53: Libra malvinense
A54: GBP | B54: Libra esterlina
A55: GEL | B55: Lari
A56: GHS | B56: Cedi ghanés
A57: GIP | B57: Libra de Gibraltar
A58: GMD | B58: Dalasi
A59: GNF | B59: Franco guineano
A60: GTQ | B60: Quetzal
A61: GYD | B61: Dólar guyanés
A62: HKD | B62: Dólar de Hong Kong
A63: HNL | B63: Lempira
A64: HRK | B64: Kuna
A65: HTG | B65: Gourde
A66: HUF | B66: Forinto
A67: IDR | B67: Rupia indonesia
A68: ILS | B68: Nuevo shéquel israelí
A69: INR | B69: Rupia india
A70: IQD | B70: Dinar iraquí
A71: IRR | B71: Rial iraní
A72: ISK | B72: Corona islandesa
A73: JMD | B73: Dólar jamaiquino
A74: JOD | B74: Dinar jordano
A75: JPY | B75: Yen
A76: KES | B76: Chelín keniano
A77: KGS | B77: Som
A78: KHR | B78: Riel
A79: KMF | B79: Franco comorense
A80: KPW | B80: Won norcoreano
A81: KRW | B81: Won
A82: KWD | B82: Dinar kuwaití
A83: KYD | B83: Dólar de las Islas Caimán
A84: KZT | B84: Tenge
A85: LAK | B85: Kip
A86: LBP | B86: Libra libanesa
A87: LKR | B87: Rupia de Sri Lanka
A88: LRD | B88: Dólar liberiano
A89: LSL | B89: Loti
A90: LYD | B90: Dinar libio
A91: MAD | B91: Dírham marroquí
A92: MDL | B92: Leu moldavo
A93: MGA | B93: Ariary malgache
A94: MKD | B94: Denar
A95: MMK | B95: Kyat
A96: MNT | B96: Tugrik
A97: MOP | B97: Pataca
A98: MRU | B98: Uguiya
A99: MUR | B99: Rupia de Mauricio
A100: MVR | B100: Rufiyaa
A101: MWK | B101: Kwacha
A102: MXN | B102: Peso mexicano
A103: MXV | B103: Unidad de Inversión (UDI) mexicana
A104: MYR | B104: Ringgit malayo
A105: MZN | B105: Metical mozambiqueño
A106: NAD | B106: Dólar namibio
A107: NGN | B107: Naira
A108: NIO | B108: Córdoba
A109: NOK | B109: Corona noruega
A110: NPR | B110: Rupia nepalí
A111: NZD | B111: Dólar neozelandés
A112: OMR | B112: Rial omaní
A113: PAB | B113: Balboa
A114: PEN | B114: Sol
A115: PGK | B115: Kina
A116: PHP | B116: Peso filipino
A117: PKR | B117: Rupia pakistaní
A118: PLN | B118: Złoty
A119: QAR | B119: Riyal qatarí
A120: RON | B120: Leu rumano
A121: RSD | B121: Dinar serbio
A122: RUB | B122: Rublo ruso
A123: RWF | B123: Franco ruandés
A124: SAR | B124: Riyal saudí
A125: SBD | B125: Dólar de las Islas Salomón
A126: SCR | B126: Rupia seychelense
A127: SDG | B127: Dinar sudanés
A128: SEK | B128: Corona sueca
A129: SGD | B129: Dólar de Singapur
A130: SHP | B130: Libra de Santa Elena
A131: SLL | B131: Leone
A132: SOS | B132: Chelín somalí
A133: SRD | B133: Dólar surinamés
A134: SSP | B134: Libra sursudanesa
A135: STN | B135: Dobra
A136: SVC | B136: Colon Salvadoreño
A137: SYP | B137: Libra siria
A138: SZL | B138: Lilangeni
A139: THB | B139: Baht
A140: TJS | B140: Somoni tayiko
A141: TMT | B141: Manat turcomano
A142: TND | B142: Dinar tunecino
A143: TOP | B143: Paʻanga
A144: TRY | B144: Lira turca
A145: TTD | B145: Dólar de Trinidad y Tobago
A146: TWD | B146: Nuevo dólar taiwanés
A147: TZS | B147: Chelín tanzano
A148: UAH | B148: Grivna
A149: UGX | B149: Chelín ugandés
A150: USN | B150: Dólar estadounidense (Siguiente día)
A151: UYI | B151: Peso en Unidades Indexadas (Uruguay)
A152: UYU | B152: Peso uruguayo
A153: UYW | B153: Unidad Previsional
A154: UZS | B154: Som uzbeko
A155: VES7​ | B155: Bolívar soberano
A156: VND | B156: Dong vietnamita
A157: VUV | B157: Vatu
A158: WST | B158: Tala
A159: XAF | B159: Franco CFA de África Central
A160: XAG | B160: Plata (una onza troy)
A161: XAU | B161: Oro (una onza troy)
A162: XBA | B162: Unidad compuesta europea (EURCO) (Unidad del mercados de bonos)
A163: XBB | B163: Unidad Monetaria europea (E.M.U.-6) (Unidad del mercado de bonos)
A164: XBC | B164: Unidad europea de cuenta 9 (E.U.A.-9) (Unidad del mercado de bonos)
A165: XBD | B165: Unidad europea de cuenta 17 (E.U.A.-17) (Unidad del mercado de bonos)
A166: XCD | B166: Dólar del Caribe Oriental
A167: XDR | B167: Derechos especiales de giro
A168: XOF | B168: Franco CFA de África Occidental
A169: XPD | B169: Paladio (una onza troy)
A170: XPF | B170: Franco CFP
A171: XPT | B171: Platino (una onza troy)
A172: XSU | B172: SUCRE
A173: XTS | B173: Reservado para pruebas
A174: XUA | B174: Unidad de cuenta BAD
A175: XXX | B175: Sin divisa
A176: YER | B176: Rial yemení
A177: ZAR | B177: Rand
A178: ZMW | B178: Kwacha zambiano
A179: ZWL | B179: Dólar zimbabuense

Sheet Hoja1 (hidden)
